Body name,Directorate,Service Area Categorisation,Supplier Name,Date,Net Amount,Purpose of Spend,Procurement Classification: ProClass Label
Solihull MBC,Resources,Central Services to the Public,123 Reg R T ,22/12/2016,33.55,ICT Projects,161000 - Domestic Goods - Commercial
Solihull MBC,Resources,Central Services to the Public,1PP Education Ltd ,22/12/2016,180.00,HRE Management,209999 - Financial Services - Not Elsewhere Classified
Solihull MBC,Adult Social Care,Adult Social Care,Adventure Island Mini Gol ,22/12/2016,5.40,25 Stapleton Drive,291400 - Arts & Leisure Services - Sport & Fitness
Solihull MBC,Adult Social Care,Adult Social Care,Agora Publications ,22/12/2016,54.94,9 Hurst Green,201711 - Financial Services - Grants - Non-charitable
Solihull MBC,Adult Social Care,Adult Social Care,Aldi,24/11/2016,3.32,Cleaning,111200 - Catering - Food & Beverages
Solihull MBC,Adult Social Care,Adult Social Care,Aldi,21/11/2016,6.94,Catering Provisions,111200 - Catering - Food & Beverages
Solihull MBC,Adult Social Care,Adult Social Care,Aldi,21/11/2016,7.47,Cleaning,111200 - Catering - Food & Beverages
Solihull MBC,Adult Social Care,Adult Social Care,Aldi,08/11/2016,9.20,Catering Provisions,111200 - Catering - Food & Beverages
Solihull MBC,Adult Social Care,Adult Social Care,Aldi,14/11/2016,11.59,Catering Provisions,111200 - Catering - Food & Beverages
Solihull MBC,Adult Social Care,Adult Social Care,Aldi,14/11/2016,12.77,Cleaning,111200 - Catering - Food & Beverages
Solihull MBC,Adult Social Care,Adult Social Care,Aldi,21/11/2016,118.99,Catering Provisions,111200 - Catering - Food & Beverages
Solihull MBC,Adult Social Care,Adult Social Care,Aldi,14/11/2016,120.81,Catering Provisions,111200 - Catering - Food & Beverages
Solihull MBC,Resources,Central Services to the Public,Aldi ,22/12/2016,4.48,Organisational Development,111200 - Catering - Food & Beverages
Solihull MBC,Adult Social Care,Adult Social Care,Aldi ,22/12/2016,7.24,25 Stapleton Drive,111200 - Catering - Food & Beverages
Solihull MBC,Adult Social Care,Adult Social Care,Aldi ,22/12/2016,7.64,25 Stapleton Drive,111200 - Catering - Food & Beverages
Solihull MBC,Adult Social Care,Adult Social Care,Aldi ,22/12/2016,9.60,25 Stapleton Drive,111200 - Catering - Food & Beverages
Solihull MBC,Adult Social Care,Adult Social Care,Aldi ,22/12/2016,9.84,25 Stapleton Drive,111200 - Catering - Food & Beverages
Solihull MBC,Resources,Central Services to the Public,Aldi ,22/12/2016,11.38,Organisational Development,111200 - Catering - Food & Beverages
Solihull MBC,Adult Social Care,Adult Social Care,Aldi ,22/12/2016,71.93,PD - Day Care Green Acres,111200 - Catering - Food & Beverages
Solihull MBC,Adult Social Care,Adult Social Care,Aldi ,22/12/2016,83.74,25 Stapleton Drive,111200 - Catering - Food & Beverages
Solihull MBC,Adult Social Care,Adult Social Care,Aldi ,22/12/2016,85.38,25 Stapleton Drive,111200 - Catering - Food & Beverages
Solihull MBC,Adult Social Care,Adult Social Care,Aldi ,22/12/2016,96.18,25 Stapleton Drive,111200 - Catering - Food & Beverages
Solihull MBC,Adult Social Care,Adult Social Care,Aldi ,22/12/2016,106.25,25 Stapleton Drive,111200 - Catering - Food & Beverages
Solihull MBC,Adult Social Care,Adult Social Care,Aldi ,22/12/2016,131.65,25 Stapleton Drive,111200 - Catering - Food & Beverages
Solihull MBC,Managed Growth and Communities - HRA,Housing Revenue Account,Alliance Disposables ,22/12/2016,103.08,Purchase Card SCH Facilities Mgmt,111000 - Catering - Banquet & Catering
Solihull MBC,Resources,Central Services to the Public,Amazon UK Marketplace,23/11/2016,2.24,General Office Expenses,171114 - Education - Literature
Solihull MBC,Adult Social Care,Cultural & Related Services,Amazon UK Marketplace,16/11/2016,3.98,Furniture & Equipment,161000 - Domestic Goods - Commercial
Solihull MBC,Children's Services & Skills,Children & Education Services,Amazon UK Marketplace,10/11/2016,7.62,General Office Expenses,171114 - Education - Literature
Solihull MBC,Adult Social Care,Adult Social Care,Amazon UK Marketplace,17/11/2016,8.68,Furniture & Equipment,161000 - Domestic Goods - Commercial
Solihull MBC,Children's Services & Skills,Children & Education Services,Amazon UK Marketplace,01/12/2016,10.98,IT Equipment & Software,171114 - Education - Literature
Solihull MBC,Children's Services & Skills,Children & Education Services,Amazon UK Marketplace,01/12/2016,10.98,IT Equipment & Software,161000 - Domestic Goods - Commercial
Solihull MBC,Adult Social Care,Central Services to the Public,Amazon UK Marketplace,17/11/2016,13.74,General Office Expenses,161000 - Domestic Goods - Commercial
Solihull MBC,Children's Services & Skills,Children & Education Services,Amazon UK Marketplace,12/11/2016,18.74,General Office Expenses,161000 - Domestic Goods - Commercial
Solihull MBC,Adult Social Care,Cultural & Related Services,Amazon UK Marketplace,16/11/2016,19.47,Furniture & Equipment,161000 - Domestic Goods - Commercial
Solihull MBC,Adult Social Care,Adult Social Care,Amazon UK Marketplace,05/11/2016,21.42,General Office Expenses,161000 - Domestic Goods - Commercial
Solihull MBC,Managed Growth and Communities,Planning & Development Services,Amazon UK Marketplace,23/11/2016,22.99,General Office Expenses,161000 - Domestic Goods - Commercial
Solihull MBC,Resources,Central Services to the Public,Amazon UK Marketplace,24/11/2016,25.01,General Office Expenses,161000 - Domestic Goods - Commercial
Solihull MBC,Children's Services & Skills,Children & Education Services,Amazon UK Marketplace,01/12/2016,29.99,IT Equipment & Software,171114 - Education - Literature
Solihull MBC,Managed Growth and Communities - HRA,Housing Revenue Account,Amazon UK Marketplace,12/11/2016,31.31,General Debtors,171114 - Education - Literature
Solihull MBC,Adult Social Care,Adult Social Care,Amazon UK Marketplace,17/11/2016,31.90,Furniture & Equipment,161000 - Domestic Goods - Commercial
Solihull MBC,Adult Social Care,Adult Social Care,Amazon UK Marketplace,25/11/2016,35.95,Furniture & Equipment,161000 - Domestic Goods - Commercial
Solihull MBC,Resources,Central Services to the Public,Amazon UK Marketplace,22/11/2016,40.73,IT Equipment & Software,161000 - Domestic Goods - Commercial
Solihull MBC,Adult Social Care,Adult Social Care,Amazon UK Marketplace,05/11/2016,49.99,General Office Expenses,161000 - Domestic Goods - Commercial
Solihull MBC,Adult Social Care,Adult Social Care,Amazon UK Marketplace ,22/12/2016,5.90,PD - Day Care Green Acres,171114 - Education - Literature
Solihull MBC,Adult Social Care,Adult Social Care,Amazon UK Marketplace ,22/12/2016,5.90,PD - Day Care Green Acres,161000 - Domestic Goods - Commercial
Solihull MBC,Adult Social Care,Central Services to the Public,Amazon UK Marketplace ,22/12/2016,6.00,Contact Service Support,161000 - Domestic Goods - Commercial
Solihull MBC,Children's Services - DSG Central.,Children & Education Services,Amazon UK Marketplace ,22/12/2016,7.51,Specialist Inclusion Support Service,171114 - Education - Literature
Solihull MBC,Managed Growth and Communities - HRA,Housing Revenue Account,Amazon UK Marketplace ,22/12/2016,8.98,Purchase Card SCH Facilities Mgmt,161000 - Domestic Goods - Commercial
Solihull MBC,Resources,Central Services to the Public,Amazon UK Marketplace ,22/12/2016,8.99,ICT Data Base Analysis,161000 - Domestic Goods - Commercial
Solihull MBC,Children's Services & Skills,Children & Education Services,Amazon UK Marketplace ,22/12/2016,11.59,Business & Management,161000 - Domestic Goods - Commercial
Solihull MBC,Managed Growth and Communities - HRA,Housing Revenue Account,Amazon UK Marketplace ,22/12/2016,12.98,Purchase Card SCH Facilities Mgmt,161000 - Domestic Goods - Commercial
Solihull MBC,Resources,Central Services to the Public,Amazon UK Marketplace ,22/12/2016,12.99,ICT Data Base Analysis,161000 - Domestic Goods - Commercial
Solihull MBC,Resources,Central Services to the Public,Amazon UK Marketplace ,22/12/2016,19.88,Corporate Governance,161000 - Domestic Goods - Commercial
Solihull MBC,Resources,Central Services to the Public,Amazon UK Marketplace ,22/12/2016,23.99,ICT Projects,161000 - Domestic Goods - Commercial
Solihull MBC,Managed Growth and Communities - HRA,Housing Revenue Account,Amazon UK Marketplace ,22/12/2016,26.57,Purchase Card SCH Central Admin,161000 - Domestic Goods - Commercial
Solihull MBC,Managed Growth and Communities,Environmental and Regulatory Services,Amazon UK Marketplace ,22/12/2016,26.97,Public Protection Managem,171114 - Education - Literature
Solihull MBC,Resources,Central Services to the Public,Amazon UK Marketplace ,22/12/2016,32.98,ICT: Data Centre,161000 - Domestic Goods - Commercial
Solihull MBC,Managed Growth and Communities - HRA,Housing Revenue Account,Amazon UK Marketplace ,22/12/2016,35.91,Purchase Card SCH Asset Management,161000 - Domestic Goods - Commercial
Solihull MBC,Adult Social Care,Central Services to the Public,Amazon UK Marketplace ,22/12/2016,45.80,Contact Service Support,161000 - Domestic Goods - Commercial
Solihull MBC,Managed Growth and Communities - HRA,Housing Revenue Account,Amazon UK Marketplace ,22/12/2016,57.04,Purchase Card SCH Facilities Mgmt,171114 - Education - Literature
Solihull MBC,Children's Services - DSG Central.,Children & Education Services,Amazon UK Marketplace ,22/12/2016,84.35,Specialist Inclusion Support Service,161000 - Domestic Goods - Commercial
Solihull MBC,Adult Social Care,Adult Social Care,Amazon UK Marketplace ,22/12/2016,123.68,25 Stapleton Drive,161000 - Domestic Goods - Commercial
Solihull MBC,Resources,Central Services to the Public,Amazon UK Marketplace ,22/12/2016,207.50,ICT Data Base Analysis,161000 - Domestic Goods - Commercial
Solihull MBC,Children's Services & Skills,Children & Education Services,Amazon UK Retail,27/11/2016,100.00,IT Equipment & Software,161000 - Domestic Goods - Commercial
Solihull MBC,Children's Services & Skills,Children & Education Services,Amazon UK Retail Amazon.C,02/11/2016,20.50,Furniture & Equipment,161000 - Domestic Goods - Commercial
Solihull MBC,Public Health & Commissioning,Adult Social Care,Amazon UK Retail Amazon.C,03/11/2016,41.99,Other Contracted Services,161000 - Domestic Goods - Commercial
Solihull MBC,Resources,Central Services to the Public,Amazon UK Retail Amazon.C,15/11/2016,57.38,General Office Expenses,161000 - Domestic Goods - Commercial
Solihull MBC,Adult Social Care,Adult Social Care,Amazon UK Retail Amazon.C ,22/12/2016,21.00,LD - Day Centre Park View,161000 - Domestic Goods - Commercial
Solihull MBC,Resources,Central Services to the Public,Amazon UK Retail Amazon.C ,22/12/2016,26.99,Organisational Development,161000 - Domestic Goods - Commercial
Solihull MBC,Resources,Central Services to the Public,Amazon UK Retail Amazon.C ,22/12/2016,116.99,ICT Data Base Analysis,161000 - Domestic Goods - Commercial
Solihull MBC,Managed Growth and Communities,Highways & Transport Services,Ao Retail Limited,09/11/2016,364.15,Other Contracted Services,169999 - Domestic Goods - Not Elsewhere Classified
Solihull MBC,Children's Services & Skills,Children & Education Services,Argos Direct,14/11/2016,-6.95,Clients Expenses,169999 - Domestic Goods - Not Elsewhere Classified
Solihull MBC,Adult Social Care,Adult Social Care,Argos Ltd ,22/12/2016,2.99,OP - Locality SW North,169999 - Domestic Goods - Not Elsewhere Classified
Solihull MBC,Adult Social Care,Adult Social Care,Argos Ltd ,22/12/2016,9.99,25 Stapleton Drive,169999 - Domestic Goods - Not Elsewhere Classified
Solihull MBC,Adult Social Care,Adult Social Care,Argos Ltd ,22/12/2016,14.99,1 Coppice Close,169999 - Domestic Goods - Not Elsewhere Classified
Solihull MBC,Managed Growth and Communities,Other Housing Services,Argos Ltd ,22/12/2016,14.99,Policy + Spatial Planning,169999 - Domestic Goods - Not Elsewhere Classified
Solihull MBC,Adult Social Care,Adult Social Care,Argos Ltd ,22/12/2016,29.99,9 Hurst Green,169999 - Domestic Goods - Not Elsewhere Classified
Solihull MBC,Adult Social Care,Adult Social Care,Argos Ltd ,22/12/2016,29.99,9 Hurst Green,169999 - Domestic Goods - Not Elsewhere Classified
Solihull MBC,Children's Services & Skills,Children & Education Services,Argos Retail Group,09/11/2016,16.66,Clients Expenses,169999 - Domestic Goods - Not Elsewhere Classified
Solihull MBC,Resources,Other Housing Services,Argos Retail Group,23/11/2016,29.99,Clients Expenses,169999 - Domestic Goods - Not Elsewhere Classified
Solihull MBC,Children's Services & Skills,Children & Education Services,Argos Retail Group,09/11/2016,44.95,Clients Expenses,169999 - Domestic Goods - Not Elsewhere Classified
Solihull MBC,Resources,Other Housing Services,Argos Retail Group,22/11/2016,99.99,Clients Expenses,169999 - Domestic Goods - Not Elsewhere Classified
Solihull MBC,Children's Services & Skills,Children & Education Services,Argos Retail Group,10/11/2016,124.99,Clients Expenses,169999 - Domestic Goods - Not Elsewhere Classified
Solihull MBC,Children's Services & Skills,Children & Education Services,Argos Retail Group,30/11/2016,186.71,Clients Expenses,169999 - Domestic Goods - Not Elsewhere Classified
Solihull MBC,Children's Services & Skills,Children & Education Services,Argos Retail Group,21/11/2016,232.44,Clients Expenses,169999 - Domestic Goods - Not Elsewhere Classified
Solihull MBC,Children's Services & Skills,Children & Education Services,Argos Retail Group ,22/12/2016,19.99,Childrens Social Care Finance,169999 - Domestic Goods - Not Elsewhere Classified
Solihull MBC,Children's Services & Skills,Children & Education Services,Argos Retail Group ,22/12/2016,31.93,Childrens Social Care Finance,169999 - Domestic Goods - Not Elsewhere Classified
Solihull MBC,Children's Services & Skills,Children & Education Services,Argos Retail Group ,22/12/2016,63.46,Childrens Social Care Finance,169999 - Domestic Goods - Not Elsewhere Classified
Solihull MBC,Adult Social Care,Adult Social Care,Argos Retail Group ,22/12/2016,66.33,OP - Locality SW North,169999 - Domestic Goods - Not Elsewhere Classified
Solihull MBC,Adult Social Care,Adult Social Care,Argos Retail Group ,22/12/2016,118.94,OP - Locality SW North,169999 - Domestic Goods - Not Elsewhere Classified
Solihull MBC,Adult Social Care,Adult Social Care,Asda  Stores 5880,01/12/2016,4.00,Cleaning,111200 - Catering - Food & Beverages
Solihull MBC,Children's Services & Skills,Children & Education Services,Asda 4387,21/11/2016,47.95,Clients Expenses,111200 - Catering - Food & Beverages
Solihull MBC,Adult Social Care,Adult Social Care,Asda 4387 ,22/12/2016,52.95,PD - Day Care Green Acres,111200 - Catering - Food & Beverages
Solihull MBC,Adult Social Care,Adult Social Care,Asda Stores 5881,20/11/2016,5.09,Catering Provisions,111200 - Catering - Food & Beverages
Solihull MBC,Adult Social Care,Adult Social Care,Asda Stores 5881,17/11/2016,5.50,Other Premise Costs,111200 - Catering - Food & Beverages
Solihull MBC,Adult Social Care,Adult Social Care,Asda Stores 5881,03/11/2016,5.95,Catering Provisions,111200 - Catering - Food & Beverages
Solihull MBC,Adult Social Care,Adult Social Care,Asda Stores 5881,05/11/2016,6.72,Catering Provisions,111200 - Catering - Food & Beverages
Solihull MBC,Adult Social Care,Adult Social Care,Asda Stores 5881,08/11/2016,7.40,Catering Provisions,111200 - Catering - Food & Beverages
Solihull MBC,Adult Social Care,Adult Social Care,Asda Stores 5881,23/11/2016,9.50,Purchase Card Statement Summary,111200 - Catering - Food & Beverages
Solihull MBC,Managed Growth and Communities - HRA,Housing Revenue Account,Asda Stores 5881,22/11/2016,10.00,General Debtors,111200 - Catering - Food & Beverages
Solihull MBC,Adult Social Care,Adult Social Care,Asda Stores 5881,05/11/2016,10.05,Cleaning,111200 - Catering - Food & Beverages
Solihull MBC,Managed Growth and Communities - HRA,Housing Revenue Account,Asda Stores 5881,14/11/2016,12.00,General Debtors,111200 - Catering - Food & Beverages
Solihull MBC,Adult Social Care,Adult Social Care,Asda Stores 5881,03/11/2016,25.73,Catering Provisions,111200 - Catering - Food & Beverages
Solihull MBC,Adult Social Care,Adult Social Care,Asda Stores 5881,23/11/2016,34.36,Purchase Card Statement Summary,111200 - Catering - Food & Beverages
Solihull MBC,Resources,Central Services to the Public,Asda Stores 5881 ,22/12/2016,3.55,Organisational Development,111200 - Catering - Food & Beverages
Solihull MBC,Resources,Central Services to the Public,Asda Stores 5881 ,22/12/2016,4.00,Organisational Development,111200 - Catering - Food & Beverages
Solihull MBC,Adult Social Care,Adult Social Care,Asda Stores 5881 ,22/12/2016,4.00,2 Kettlewell Close,111200 - Catering - Food & Beverages
Solihull MBC,Adult Social Care,Adult Social Care,Asda Stores 5881 ,22/12/2016,4.58,2 Kettlewell Close,111200 - Catering - Food & Beverages
Solihull MBC,Adult Social Care,Adult Social Care,Asda Stores 5881 ,22/12/2016,4.95,25 Stapleton Drive,161000 - Domestic Goods - Commercial
Solihull MBC,Adult Social Care,Adult Social Care,Asda Stores 5881 ,22/12/2016,5.00,25 Stapleton Drive,111200 - Catering - Food & Beverages
Solihull MBC,Adult Social Care,Adult Social Care,Asda Stores 5881 ,22/12/2016,5.20,25 Stapleton Drive,111200 - Catering - Food & Beverages
Solihull MBC,Adult Social Care,Adult Social Care,Asda Stores 5881 ,22/12/2016,5.60,25 Stapleton Drive,111200 - Catering - Food & Beverages
Solihull MBC,Adult Social Care,Adult Social Care,Asda Stores 5881 ,22/12/2016,5.74,2 Kettlewell Close,111200 - Catering - Food & Beverages
Solihull MBC,Adult Social Care,Adult Social Care,Asda Stores 5881 ,22/12/2016,6.75,25 Stapleton Drive,111200 - Catering - Food & Beverages
Solihull MBC,Adult Social Care,Adult Social Care,Asda Stores 5881 ,22/12/2016,7.78,2 Kettlewell Close,111200 - Catering - Food & Beverages
Solihull MBC,Adult Social Care,Adult Social Care,Asda Stores 5881 ,22/12/2016,8.80,25 Stapleton Drive,111200 - Catering - Food & Beverages
Solihull MBC,Adult Social Care,Adult Social Care,Asda Stores 5881 ,22/12/2016,9.00,25 Stapleton Drive,111200 - Catering - Food & Beverages
Solihull MBC,Adult Social Care,Adult Social Care,Asda Stores 5881 ,22/12/2016,12.00,25 Stapleton Drive,111200 - Catering - Food & Beverages
Solihull MBC,Adult Social Care,Adult Social Care,Asda Stores 5881 ,22/12/2016,16.73,25 Stapleton Drive,111200 - Catering - Food & Beverages
Solihull MBC,Adult Social Care,Central Services to the Public,Asda Stores 5881 ,22/12/2016,17.27,Contact Service Support,111200 - Catering - Food & Beverages
Solihull MBC,Adult Social Care,Central Services to the Public,Asda Stores 5881 ,22/12/2016,17.60,Solihull Connect,111200 - Catering - Food & Beverages
Solihull MBC,Children's Services & Skills,Children & Education Services,Asda Stores 5881 ,22/12/2016,20.00,Childrens Assessment Team (CAT),111200 - Catering - Food & Beverages
Solihull MBC,Adult Social Care,Adult Social Care,Asda Stores 5881 ,22/12/2016,31.91,25 Stapleton Drive,111200 - Catering - Food & Beverages
Solihull MBC,Adult Social Care,Adult Social Care,Asda Stores 5881 ,22/12/2016,35.08,2 Kettlewell Close,111200 - Catering - Food & Beverages
Solihull MBC,Adult Social Care,Adult Social Care,Asda Stores 5881 ,22/12/2016,40.54,2 Kettlewell Close,111200 - Catering - Food & Beverages
Solihull MBC,Adult Social Care,Adult Social Care,Asda Stores 5881 ,22/12/2016,47.17,2 Kettlewell Close,111200 - Catering - Food & Beverages
Solihull MBC,Adult Social Care,Adult Social Care,Asda Stores 5881 ,22/12/2016,49.81,25 Stapleton Drive,111200 - Catering - Food & Beverages
Solihull MBC,Adult Social Care,Adult Social Care,Asda Stores 5881 ,22/12/2016,73.47,25 Stapleton Drive,111200 - Catering - Food & Beverages
Solihull MBC,Adult Social Care,Adult Social Care,Asda Stores 5881 ,22/12/2016,94.42,25 Stapleton Drive,111200 - Catering - Food & Beverages
Solihull MBC,Children's Services & Skills,Children & Education Services,Asda Stores 5881 ,22/12/2016,175.00,"Referral, Assess & C Protect (Admin)",111200 - Catering - Food & Beverages
Solihull MBC,Children's Services & Skills,Children & Education Services,Asda Stores 5881 ,22/12/2016,180.00,"Referral, Assess & C Protect (Admin)",111200 - Catering - Food & Beverages
Solihull MBC,Children's Services & Skills,Children & Education Services,Asda Stores 5881 ,22/12/2016,400.00,Childrens Social Care Finance,111200 - Catering - Food & Beverages
Solihull MBC,Adult Social Care,Adult Social Care,Asda Superstore ,22/12/2016,15.50,25 Stapleton Drive,111200 - Catering - Food & Beverages
Solihull MBC,Adult Social Care,Adult Social Care,Asda Superstore ,22/12/2016,111.27,25 Stapleton Drive,111200 - Catering - Food & Beverages
Solihull MBC,Adult Social Care,Adult Social Care,Assembly Room,09/11/2016,7.12,Clients Expenses,261600 - Human Resources - Travel & Subsistence
Solihull MBC,Adult Social Care,Adult Social Care,Assembly Room ,22/12/2016,17.97,268 Creynolds Lane,261600 - Human Resources - Travel & Subsistence
Solihull MBC,Adult Social Care,Adult Social Care,B & M Retail,11/11/2016,13.98,Furniture & Equipment,169999 - Domestic Goods - Not Elsewhere Classified
Solihull MBC,Adult Social Care,Adult Social Care,B & M Retail,01/12/2016,20.96,Furniture & Equipment,169999 - Domestic Goods - Not Elsewhere Classified
Solihull MBC,Managed Growth and Communities,Cultural & Related Services,B & Q 1047 ,22/12/2016,8.00,Park Rangers,102500 - Building Construction Materials - Timber
Solihull MBC,Managed Growth and Communities,Cultural & Related Services,B & Q 1047 ,22/12/2016,11.00,Park Rangers,102500 - Building Construction Materials - Timber
Solihull MBC,Managed Growth and Communities,Environmental and Regulatory Services,B & Q 1047 ,22/12/2016,13.32,Town Centres and Events,102500 - Building Construction Materials - Timber
Solihull MBC,Adult Social Care,Adult Social Care,B & Q 1047 ,22/12/2016,54.00,OP - Home Care HQ,102500 - Building Construction Materials - Timber
Solihull MBC,Adult Social Care,Adult Social Care,B & Q 1231,07/11/2016,20.00,Furniture & Equipment,102500 - Building Construction Materials - Timber
Solihull MBC,Adult Social Care,Adult Social Care,B & Q 1302,01/12/2016,-20.00,Furniture & Equipment,102500 - Building Construction Materials - Timber
Solihull MBC,Managed Growth and Communities - HRA,Housing Revenue Account,B & Q 1302,17/11/2016,18.97,General Debtors,102500 - Building Construction Materials - Timber
Solihull MBC,Adult Social Care,Adult Social Care,B & Q 1302 ,22/12/2016,7.00,25 Stapleton Drive,102500 - Building Construction Materials - Timber
Solihull MBC,Adult Social Care,Adult Social Care,B&M Retail,01/12/2016,5.52,Cleaning,169999 - Domestic Goods - Not Elsewhere Classified
Solihull MBC,Children's Services & Skills,Children & Education Services,BCC Register Offic,09/11/2016,15.00,Clients Expenses,209999 - Financial Services - Not Elsewhere Classified
Solihull MBC,Children's Services & Skills,Children & Education Services,BCC Register Offic,09/11/2016,15.00,Clients Expenses,209999 - Financial Services - Not Elsewhere Classified
Solihull MBC,Adult Social Care,Adult Social Care,Becketts Farm,08/11/2016,9.21,Catering Provisions,261600 - Human Resources - Travel & Subsistence
Solihull MBC,Adult Social Care,Adult Social Care,Berwick Care Equipment-V,03/11/2016,19.95,Cleaning,311300 - Healthcare - Equipment
Solihull MBC,Adult Social Care,Adult Social Care,Berwick Care Equipment-V,22/11/2016,132.18,Cleaning,311300 - Healthcare - Equipment
Solihull MBC,Managed Growth and Communities,Environmental and Regulatory Services,Birmingham Dogs Home ,22/12/2016,262.25,Trading Standards,201710 - Financial Services - Grants - Charitable
Solihull MBC,Resources,Other Housing Services,BJ`s (Midwales) Ltd,21/11/2016,416.67,Clients Expenses,169999 - Domestic Goods - Not Elsewhere Classified
Solihull MBC,Children's Services - DSG Central.,Children & Education Services,British Psycho Soc,09/11/2016,31.67,Professional Fees,311600 - Healthcare - Services
Solihull MBC,Resources,Central Services to the Public,Bryant Park Hospit ,22/12/2016,78.32,Organisational Development,261000 - Human Resources - Accommodation
Solihull MBC,Resources,Central Services to the Public,Caffe Nero ,22/12/2016,5.00,CMT Secretariat,261600 - Human Resources - Travel & Subsistence
Solihull MBC,Adult Social Care,Adult Social Care,Caffe Nero 651 Solihull M,02/11/2016,5.30,Clients Expenses,261600 - Human Resources - Travel & Subsistence
Solihull MBC,Adult Social Care,Adult Social Care,Caffe Nero 651 Solihull M,02/11/2016,6.08,Clients Expenses,261600 - Human Resources - Travel & Subsistence
Solihull MBC,Resources,Central Services to the Public,Caffe Nero 651 Solihull M ,22/12/2016,5.00,CMT Secretariat,261600 - Human Resources - Travel & Subsistence
Solihull MBC,Public Health & Commissioning,Cultural & Related Services,Card Factory ,22/12/2016,3.03,Leisure,161000 - Domestic Goods - Commercial
Solihull MBC,Adult Social Care,Adult Social Care,Center Parcs- F&B ,22/12/2016,11.85,25 Stapleton Drive,261000 - Human Resources - Accommodation
Solihull MBC,Adult Social Care,Adult Social Care,Center Parcs- F&B ,22/12/2016,69.00,25 Stapleton Drive,261000 - Human Resources - Accommodation
Solihull MBC,Adult Social Care,Adult Social Care,Center Parcs- Retail ,22/12/2016,15.49,25 Stapleton Drive,261000 - Human Resources - Accommodation
Solihull MBC,Adult Social Care,Adult Social Care,Central Eng Coop,20/11/2016,6.79,Catering Provisions,169999 - Domestic Goods - Not Elsewhere Classified
Solihull MBC,Resources,Children & Education Services,Central Eng Coop ,22/12/2016,1.89,Catering Management,169999 - Domestic Goods - Not Elsewhere Classified
Solihull MBC,Adult Social Care,Adult Social Care,Central Eng Coop ,22/12/2016,4.75,9 Hurst Green,169999 - Domestic Goods - Not Elsewhere Classified
Solihull MBC,Adult Social Care,Adult Social Care,Central Eng Coop ,22/12/2016,5.95,9 Hurst Green,169999 - Domestic Goods - Not Elsewhere Classified
Solihull MBC,Adult Social Care,Adult Social Care,Central Eng Coop ,22/12/2016,8.61,9 Hurst Green,169999 - Domestic Goods - Not Elsewhere Classified
Solihull MBC,Adult Social Care,Adult Social Care,Central Eng Coop ,22/12/2016,10.80,9 Hurst Green,169999 - Domestic Goods - Not Elsewhere Classified
Solihull MBC,Adult Social Care,Adult Social Care,Central Eng Coop ,22/12/2016,11.20,9 Hurst Green,169999 - Domestic Goods - Not Elsewhere Classified
Solihull MBC,Adult Social Care,Adult Social Care,Central Eng Coop ,22/12/2016,17.53,9 Hurst Green,169999 - Domestic Goods - Not Elsewhere Classified
Solihull MBC,Adult Social Care,Adult Social Care,Central Eng Coop ,22/12/2016,23.74,9 Hurst Green,169999 - Domestic Goods - Not Elsewhere Classified
Solihull MBC,Adult Social Care,Adult Social Care,Central Eng Coop ,22/12/2016,27.25,9 Hurst Green,169999 - Domestic Goods - Not Elsewhere Classified
Solihull MBC,Adult Social Care,Central Services to the Public,Central Theatre Suppli ,22/12/2016,162.00,Solihull Connect,219999 - Furniture & Soft Furnishings - Not Elsewhere Classified
Solihull MBC,Managed Growth and Communities,Highways & Transport Services,Charge.Prezi.Com ,22/12/2016,-130.66,Places Dir Savings CS Cab,271200 - Information Communications Technology - Hardware
Solihull MBC,Managed Growth and Communities,Planning & Development Services,China Car Service,01/11/2016,181.96,Officers Expenses,361300 - Public Transport - Passenger Transport
Solihull MBC,Adult Social Care,Adult Social Care,Cineworld NEC Birm,26/11/2016,16.20,Clients Expenses,291300 - Arts & Leisure Services - Performing Arts
Solihull MBC,Adult Social Care,Adult Social Care,City Screen Pictur,30/11/2016,20.00,Clients Expenses,291300 - Arts & Leisure Services - Performing Arts
Solihull MBC,Resources,Central Services to the Public,Clickatell Ltd,03/11/2016,13.60,IT Equipment & Software,271699 - Information Communications Technology - Telecommunications
Solihull MBC,Resources,Central Services to the Public,Clickatell Ltd,05/11/2016,13.60,IT Equipment & Software,271699 - Information Communications Technology - Telecommunications
Solihull MBC,Resources,Central Services to the Public,Clickatell Ltd,28/11/2016,13.60,IT Equipment & Software,271699 - Information Communications Technology - Telecommunications
Solihull MBC,Resources,Central Services to the Public,Clickatell Ltd,23/11/2016,13.60,IT Equipment & Software,271699 - Information Communications Technology - Telecommunications
Solihull MBC,Resources,Central Services to the Public,Clickatell Ltd,12/11/2016,13.60,IT Equipment & Software,271699 - Information Communications Technology - Telecommunications
Solihull MBC,Resources,Children & Education Services,Co-Op Food Centre ,22/12/2016,2.07,Catering Management,111200 - Catering - Food & Beverages
Solihull MBC,Adult Social Care,Adult Social Care,Coop Foodctr,16/11/2016,11.10,Catering Provisions,111200 - Catering - Food & Beverages
Solihull MBC,Resources,Central Services to the Public,Co-Op Late Shop ,22/12/2016,7.35,Organisational Development,111200 - Catering - Food & Beverages
Solihull MBC,Managed Growth and Communities,Highways & Transport Services,Coralgraph Inc ,22/12/2016,13.00,Sustainable Travel & Highway Management,271600 - Information Communication Technology - Software - Customised & Bespoke
Solihull MBC,Adult Social Care,Adult Social Care,Costa @ Next 43037905,16/11/2016,3.96,Clients Expenses,261600 - Human Resources - Travel & Subsistence
Solihull MBC,Adult Social Care,Adult Social Care,Costa @ Next 43037905,16/11/2016,4.45,Clients Expenses,261600 - Human Resources - Travel & Subsistence
Solihull MBC,Adult Social Care,Adult Social Care,Costa Coffee,23/11/2016,4.00,Clients Expenses,261600 - Human Resources - Travel & Subsistence
Solihull MBC,Children's Services & Skills,Children & Education Services,Cross Country Trains ,22/12/2016,41.80,Childrens Social Care Finance,261600 - Human Resources - Travel & Subsistence
Solihull MBC,Children's Services & Skills,Children & Education Services,Cross Country Trains ,22/12/2016,42.80,Childrens Social Care Finance,261600 - Human Resources - Travel & Subsistence
Solihull MBC,Children's Services & Skills,Children & Education Services,Cross Country Trains ,22/12/2016,44.00,Childrens Social Care Finance,261600 - Human Resources - Travel & Subsistence
Solihull MBC,Resources,Central Services to the Public,Cross Country Trains ,22/12/2016,60.00,ICT: Network Support,261600 - Human Resources - Travel & Subsistence
Solihull MBC,Children's Services & Skills,Children & Education Services,Cross Country Trains ,22/12/2016,80.30,Childrens Social Care Finance,261600 - Human Resources - Travel & Subsistence
Solihull MBC,Children's Services & Skills,Children & Education Services,Crowne Plaza ,22/12/2016,125.00,"Referral, Assess & C Protect (Admin)",261000 - Human Resources - Accommodation
Solihull MBC,Resources,Central Services to the Public,Currys ,22/12/2016,8.98,ICT Projects,169999 - Domestic Goods - Not Elsewhere Classified
Solihull MBC,Adult Social Care,Adult Social Care,Currys Online,26/11/2016,58.32,Repair & Maintn Of Buildings,169999 - Domestic Goods - Not Elsewhere Classified
Solihull MBC,Managed Growth and Communities - HRA,Housing Revenue Account,Darlaston Builders Mer,08/11/2016,21.58,General Debtors,109999 - Building Construction Materials - Not Elsewhere Classified
Solihull MBC,Managed Growth and Communities - HRA,Housing Revenue Account,Darlaston Builders Mer,25/11/2016,360.79,General Debtors,109999 - Building Construction Materials - Not Elsewhere Classified
Solihull MBC,Adult Social Care,Adult Social Care,Dean And Chapter O,29/11/2016,7.50,Clients Expenses,201711 - Financial Services - Grants - Non-charitable
Solihull MBC,Adult Social Care,Cultural & Related Services,Dennis Publishing,30/11/2016,39.50,Materials,349999 - Stationery - Not Elsewhere Classified
Solihull MBC,Adult Social Care,Adult Social Care,Dobbies ,22/12/2016,33.99,25 Stapleton Drive,249999 - Horticultural - Not Elsewhere Classified
Solihull MBC,Adult Social Care,Adult Social Care,Duke Of York,01/12/2016,20.22,Clients Expenses,261600 - Human Resources - Travel & Subsistence
Solihull MBC,Managed Growth and Communities,Cultural & Related Services,Earlswood Nurseries ,22/12/2016,80.55,Park Rangers,249999 - Horticultural - Not Elsewhere Classified
Solihull MBC,Managed Growth and Communities - HRA,Housing Revenue Account,Eb *Chief Officers Sto ,22/12/2016,478.80,Purchase Card SCH Central Admin,151000 - Consultancy - Business
Solihull MBC,Adult Social Care,Cultural & Related Services,Economist Subscription,01/12/2016,145.00,Materials,349999 - Stationery - Not Elsewhere Classified
Solihull MBC,Adult Social Care,Central Services to the Public,Electrolux ,22/12/2016,69.98,Contact Service Support,161000 - Domestic Goods - Commercial
Solihull MBC,Adult Social Care,Adult Social Care,Emporium ,22/12/2016,35.00,25 Stapleton Drive,169999 - Domestic Goods - Not Elsewhere Classified
Solihull MBC,Adult Social Care,Central Services to the Public,Esedirect.co.uk ,22/12/2016,41.40,Contact Service Support,341100 - Stationery - Sundries
Solihull MBC,Managed Growth and Communities,Cultural & Related Services,ESPO,22/12/2016,61.02,Park Rangers,209999 - Financial Services - Not Elsewhere Classified
Solihull MBC,Managed Growth and Communities,Environmental and Regulatory Services,Eurogarages T A Hobbs Moa ,22/12/2016,45.17,Trading Standards,381100 - Vehicle Management - Fuel
Solihull MBC,Adult Social Care,Adult Social Care,Euronetwork.co.uk,02/11/2016,49.90,General Office Expenses,169999 - Domestic Goods - Not Elsewhere Classified
Solihull MBC,Managed Growth and Communities,Environmental and Regulatory Services,Factorsafe Ltd ,22/12/2016,226.84,Licensing,111100 - Catering - Equipment & Utensils
Solihull MBC,Adult Social Care,Adult Social Care,Farmfoods- Castle,08/11/2016,34.95,Catering Provisions,111200 - Catering - Food & Beverages
Solihull MBC,Adult Social Care,Adult Social Care,Farmfoods- Castle ,22/12/2016,12.99,25 Stapleton Drive,111200 - Catering - Food & Beverages
Solihull MBC,Adult Social Care,Adult Social Care,Farmfoods- Castle ,22/12/2016,20.27,25 Stapleton Drive,111200 - Catering - Food & Beverages
Solihull MBC,Adult Social Care,Adult Social Care,Farmfoods- Castle ,22/12/2016,24.97,25 Stapleton Drive,111200 - Catering - Food & Beverages
Solihull MBC,Adult Social Care,Adult Social Care,Farmfoods- Castle ,22/12/2016,29.36,25 Stapleton Drive,111200 - Catering - Food & Beverages
Solihull MBC,Adult Social Care,Adult Social Care,Farmfoods- Castle ,22/12/2016,29.73,25 Stapleton Drive,111200 - Catering - Food & Beverages
Solihull MBC,Adult Social Care,Adult Social Care,Farmfoods- Castle ,22/12/2016,47.45,25 Stapleton Drive,111200 - Catering - Food & Beverages
Solihull MBC,Resources,Children & Education Services,Farmfoods- Tile Hi ,22/12/2016,2.69,Catering Management,111200 - Catering - Food & Beverages
Solihull MBC,Children's Services - DSG Central.,Children & Education Services,Flybe       F2P7Wx,10/11/2016,102.99,Purchase Card Statement Summary,361300 - Public Transport - Passenger Transport
Solihull MBC,Children's Services & Skills,Children & Education Services,Flybe������ Av82J8 ,22/12/2016,172.00,Childrens Social Care Finance,361300 - Public Transport - Passenger Transport
Solihull MBC,Managed Growth and Communities - HRA,Housing Revenue Account,Fotolia - Zwicimttoo73,16/11/2016,51.00,General Debtors,191100 - Facilities & Management Services - Design & Photography
Solihull MBC,Adult Social Care,Cultural & Related Services,GN&M Ltd,10/11/2016,36.79,Materials,349999 - Stationery - Not Elsewhere Classified
Solihull MBC,Adult Social Care,Cultural & Related Services,GN&M Ltd,03/11/2016,41.12,Materials,349999 - Stationery - Not Elsewhere Classified
Solihull MBC,Children's Services & Skills,Children & Education Services,Google *Services,01/12/2016,27.49,IT Equipment & Software,169999 - Domestic Goods - Not Elsewhere Classified
Solihull MBC,Children's Services & Skills,Children & Education Services,Google *Services,24/11/2016,332.50,IT Equipment & Software,169999 - Domestic Goods - Not Elsewhere Classified
Solihull MBC,Resources,Central Services to the Public,Grasmere Court Hotel ,22/12/2016,152.00,Organisational Development,261000 - Human Resources - Accommodation
Solihull MBC,Children's Services & Skills,Children & Education Services,GRO HM Passport Office,20/10/2016,-9.25,Clients Expenses,209999 - Financial Services - Not Elsewhere Classified
Solihull MBC,Children's Services & Skills,Children & Education Services,GRO HM Passport Office,03/11/2016,9.25,Clients Expenses,209999 - Financial Services - Not Elsewhere Classified
Solihull MBC,Children's Services & Skills,Children & Education Services,GRO HM Passport Office ,22/12/2016,23.40,Childrens Social Care Finance,209999 - Financial Services - Not Elsewhere Classified
Solihull MBC,Children's Services & Skills,Children & Education Services,GRO HM Passport Office ,22/12/2016,37.00,Childrens Social Care Finance,209999 - Financial Services - Not Elsewhere Classified
Solihull MBC,Children's Services & Skills,Children & Education Services,GRO HM Passport Office ,22/12/2016,46.80,Childrens Social Care Finance,209999 - Financial Services - Not Elsewhere Classified
Solihull MBC,Children's Services & Skills,Children & Education Services,GRO HM Passport Office ,22/12/2016,55.50,Childrens Social Care Finance,209999 - Financial Services - Not Elsewhere Classified
Solihull MBC,Children's Services & Skills,Children & Education Services,GRO HM Passport Office ,22/12/2016,70.20,Childrens Social Care Finance,209999 - Financial Services - Not Elsewhere Classified
Solihull MBC,Children's Services & Skills,Children & Education Services,GWR Websales Ecom ,22/12/2016,280.00,Childrens Social Care Finance,261600 - Human Resources - Travel & Subsistence
Solihull MBC,Resources,Corporate & Democratic Core,Halfds 0857,22/11/2016,13.32,Other Transport Costs,331300 - Sports & Playground Equipment & Maintenance - Sports Equipment
Solihull MBC,Resources,Central Services to the Public,Halfords 0328 ,22/12/2016,10.99,ICT Projects,331300 - Sports & Playground Equipment & Maintenance - Sports Equipment
Solihull MBC,Adult Social Care,Cultural & Related Services,Hancocks-,22/11/2016,755.91,Catering Provisions,111200 - Catering - Food & Beverages
Solihull MBC,Adult Social Care,Cultural & Related Services,Hawthorn Theatrica,23/11/2016,480.00,Furniture & Equipment,151000 - Consultancy - Business
Solihull MBC,Public Health & Commissioning,Central Services to the Public,Heart Of England ,22/12/2016,3.75,Emergency Planning,261600 - Human Resources - Travel & Subsistence
Solihull MBC,Adult Social Care,Adult Social Care,Hillfield Farm,11/11/2016,7.29,Clients Expenses,261600 - Human Resources - Travel & Subsistence
Solihull MBC,Adult Social Care,Adult Social Care,Hillfield Farm,11/11/2016,8.99,Clients Expenses,261600 - Human Resources - Travel & Subsistence
Solihull MBC,Adult Social Care,Adult Social Care,Hillfield Farm,11/11/2016,11.32,Clients Expenses,261600 - Human Resources - Travel & Subsistence
Solihull MBC,Adult Social Care,Adult Social Care,Hillfield Farm,11/11/2016,11.75,Clients Expenses,261600 - Human Resources - Travel & Subsistence
Solihull MBC,Adult Social Care,Adult Social Care,Hillfield Farm,21/11/2016,14.83,Clients Expenses,261600 - Human Resources - Travel & Subsistence
Solihull MBC,Adult Social Care,Adult Social Care,Hillfield Farm,11/11/2016,15.03,Clients Expenses,261600 - Human Resources - Travel & Subsistence
Solihull MBC,Children's Services & Skills,Children & Education Services,HM Passport Office ,22/12/2016,75.50,Childrens Social Care Finance,209999 - Financial Services - Not Elsewhere Classified
Solihull MBC,Resources,Central Services to the Public,HMCourts-Service.G,11/11/2016,615.00,Court Fees,209999 - Financial Services - Not Elsewhere Classified
Solihull MBC,Resources,Central Services to the Public,HMCourts-Service.G,11/11/2016,1365.00,Court Fees,209999 - Financial Services - Not Elsewhere Classified
Solihull MBC,Adult Social Care,Adult Social Care,Hobbycraft Group L ,22/12/2016,8.00,25 Stapleton Drive,171110 - Education - Arts & Crafts
Solihull MBC,Children's Services & Skills,Children & Education Services,Hobbycraft Group L ,22/12/2016,13.00,Business & Management,171110 - Education - Arts & Crafts
Solihull MBC,Adult Social Care,Adult Social Care,Hole In The Wall,29/11/2016,7.35,Clients Expenses,261600 - Human Resources - Travel & Subsistence
Solihull MBC,Adult Social Care,Adult Social Care,Hole In The Wall,29/11/2016,14.92,Clients Expenses,261600 - Human Resources - Travel & Subsistence
Solihull MBC,Adult Social Care,Adult Social Care,Hole In The Wall,30/11/2016,22.30,Clients Expenses,261600 - Human Resources - Travel & Subsistence
Solihull MBC,Public Health & Commissioning,Cultural & Related Services,Holland & Barrett ,22/12/2016,40.01,Leisure,161000 - Domestic Goods - Commercial
Solihull MBC,Adult Social Care,Adult Social Care,Hollywood Meats Ltd,15/11/2016,65.00,Catering Provisions,111200 - Catering - Food & Beverages
Solihull MBC,Adult Social Care,Adult Social Care,Home Bargains Chelmsle ,22/12/2016,10.77,25 Stapleton Drive,101400 - Building Construction Materials - General Materials
Solihull MBC,Adult Social Care,Adult Social Care,Home Bargains Chelmsle ,22/12/2016,16.84,25 Stapleton Drive,101400 - Building Construction Materials - General Materials
Solihull MBC,Adult Social Care,Adult Social Care,Homebase Ltd 039,01/12/2016,-38.36,General Office Expenses,102500 - Building Construction Materials - Timber
Solihull MBC,Adult Social Care,Adult Social Care,Homebase Ltd 039,16/11/2016,13.00,Furniture & Equipment,102500 - Building Construction Materials - Timber
Solihull MBC,Adult Social Care,Adult Social Care,Homebase Ltd 039,01/12/2016,41.35,General Office Expenses,102500 - Building Construction Materials - Timber
Solihull MBC,Adult Social Care,Adult Social Care,Iceland,20/11/2016,62.43,Catering Provisions,111200 - Catering - Food & Beverages
Solihull MBC,Adult Social Care,Adult Social Care,Iceland ,22/12/2016,2.39,25 Stapleton Drive,111200 - Catering - Food & Beverages
Solihull MBC,Adult Social Care,Adult Social Care,Iceland ,22/12/2016,2.98,25 Stapleton Drive,111200 - Catering - Food & Beverages
Solihull MBC,Adult Social Care,Adult Social Care,Iceland ,22/12/2016,71.85,25 Stapleton Drive,111200 - Catering - Food & Beverages
Solihull MBC,Adult Social Care,Adult Social Care,Iceland ,22/12/2016,111.90,25 Stapleton Drive,111200 - Catering - Food & Beverages
Solihull MBC,Adult Social Care,Cultural & Related Services,Ikea ,22/12/2016,30.35,Theatre Bar,211210 - Furniture & Soft Furnishings - Soft Furnishings
Solihull MBC,Adult Social Care,Adult Social Care,Incchoice ,22/12/2016,23.49,25 Stapleton Drive,161000 - Domestic Goods - Commercial
Solihull MBC,Managed Growth and Communities,Other Housing Services,International Copy Sho ,22/12/2016,40.80,Policy + Spatial Planning,349999 - Stationery - Not Elsewhere Classified
Solihull MBC,Resources,Central Services to the Public,IRMS,29/11/2016,25.00,Professional Fees,209999 - Financial Services - Not Elsewhere Classified
Solihull MBC,Resources,Central Services to the Public,IRMS,29/11/2016,25.00,Professional Fees,209999 - Financial Services - Not Elsewhere Classified
Solihull MBC,Resources,Central Services to the Public,IRMS,29/11/2016,45.83,Professional Fees,209999 - Financial Services - Not Elsewhere Classified
Solihull MBC,Resources,Central Services to the Public,IRMS,29/11/2016,45.83,Professional Fees,209999 - Financial Services - Not Elsewhere Classified
Solihull MBC,Resources,Central Services to the Public,Itunes.com Bill ,22/12/2016,0.79,ICT Projects,171111 - Education - Audio Visual
Solihull MBC,Adult Social Care,Cultural & Related Services,ITW Envopak,09/11/2016,176.72,General Office Expenses,111100 - Catering - Equipment & Utensils
Solihull MBC,Managed Growth and Communities - HRA,Housing Revenue Account,J E Electrical Whls,24/11/2016,-9.29,Purchase Card Statement Summary,101100 - Building Construction Materials - Electrical
Solihull MBC,Managed Growth and Communities - HRA,Housing Revenue Account,J E Electrical Whls,28/11/2016,4.17,General Debtors,101100 - Building Construction Materials - Electrical
Solihull MBC,Managed Growth and Communities - HRA,Housing Revenue Account,J E Electrical Whls,23/11/2016,9.29,General Debtors,101100 - Building Construction Materials - Electrical
Solihull MBC,Managed Growth and Communities - HRA,Housing Revenue Account,J E Electrical Whls,22/11/2016,14.96,General Debtors,101100 - Building Construction Materials - Electrical
Solihull MBC,Children's Services & Skills,Children & Education Services,John Lewis,24/11/2016,315.87,IT Equipment & Software,169999 - Domestic Goods - Not Elsewhere Classified
Solihull MBC,Adult Social Care,Adult Social Care,JS Online Grocery ,22/12/2016,108.63,OP - Day Centre Greenhill Way,111200 - Catering - Food & Beverages
Solihull MBC,Adult Social Care,Adult Social Care,JS Online Grocery ,22/12/2016,138.23,OP - Longview Extra Care,111200 - Catering - Food & Beverages
Solihull MBC,Adult Social Care,Adult Social Care,JS Online Grocery ,22/12/2016,155.46,OP - Day Centre Greenhill Way,111200 - Catering - Food & Beverages
Solihull MBC,Adult Social Care,Adult Social Care,JS Online Grocery ,22/12/2016,185.60,OP - Day Centre Greenhill Way,111200 - Catering - Food & Beverages
Solihull MBC,Children's Services & Skills,Children & Education Services,Kiddicare ,22/12/2016,140.45,Childrens Social Care Finance,211210 - Furniture & Soft Furnishings - Soft Furnishings
Solihull MBC,Adult Social Care,Cultural & Related Services,Lakeland Limited,25/11/2016,16.66,Furniture & Equipment,169999 - Domestic Goods - Not Elsewhere Classified
Solihull MBC,Resources,Central Services to the Public,Lend Lease Real Estate,29/11/2016,350.00,Materials,161000 - Domestic Goods - Commercial
Solihull MBC,Managed Growth and Communities,Planning & Development Services,Lend Lease Retail,15/11/2016,31.25,Room Hire/ Premises Hire,151000 - Consultancy - Business
Solihull MBC,Resources,Corporate & Democratic Core,Listers Land Rover,08/11/2016,24.96,Other Transport Costs,381500 - Vehicle Management - Parts
Solihull MBC,Resources,Central Services to the Public,London Midland Sel ,22/12/2016,4.30,CMT Secretariat,261600 - Human Resources - Travel & Subsistence
Solihull MBC,Managed Growth and Communities,Highways & Transport Services,London Midland Sel ,22/12/2016,11.90,Places Dir Savings CS Cab,261600 - Human Resources - Travel & Subsistence
Solihull MBC,Resources,Central Services to the Public,London Midland Tic,11/11/2016,8.30,Officers Expenses,261600 - Human Resources - Travel & Subsistence
Solihull MBC,Managed Growth and Communities,Environmental and Regulatory Services,London Midland Tic ,22/12/2016,5.00,Licensing,261600 - Human Resources - Travel & Subsistence
Solihull MBC,Children's Services & Skills,Children & Education Services,London Midland Web ,22/12/2016,17.70,Childrens Social Care Finance,261600 - Human Resources - Travel & Subsistence
Solihull MBC,Managed Growth and Communities - HRA,Housing Revenue Account,M&J Mahoney & Sons Ltd,30/11/2016,6.00,General Debtors,102500 - Building Construction Materials - Timber
Solihull MBC,Managed Growth and Communities - HRA,Housing Revenue Account,M&J Mahoney & Sons Ltd,21/11/2016,10.13,General Debtors,102500 - Building Construction Materials - Timber
Solihull MBC,Managed Growth and Communities,Highways & Transport Services,M&J Mahoney & Sons Ltd,10/11/2016,11.25,Materials,102500 - Building Construction Materials - Timber
Solihull MBC,Managed Growth and Communities,Highways & Transport Services,M&J Mahoney & Sons Ltd,08/11/2016,21.30,Materials,102500 - Building Construction Materials - Timber
Solihull MBC,Managed Growth and Communities - HRA,Housing Revenue Account,M&J Mahoney & Sons Ltd,14/11/2016,22.00,General Debtors,102500 - Building Construction Materials - Timber
Solihull MBC,Managed Growth and Communities - HRA,Housing Revenue Account,M&J Mahoney & Sons Ltd,01/12/2016,24.87,General Debtors,102500 - Building Construction Materials - Timber
Solihull MBC,Managed Growth and Communities,Cultural & Related Services,M&J Mahoney & Sons Ltd ,22/12/2016,384.47,Park Rangers,102500 - Building Construction Materials - Timber
Solihull MBC,Resources,Corporate & Democratic Core,M6 Toll,24/11/2016,4.58,Other Transport Costs,261600 - Human Resources - Travel & Subsistence
Solihull MBC,Managed Growth and Communities,Highways & Transport Services,Machine Mart Web ,22/12/2016,101.99,Sustainable Travel & Highway Management,219999 - Furniture & Soft Furnishings - Not Elsewhere Classified
Solihull MBC,Resources,Central Services to the Public,Mailbox Car Park Limited ,22/12/2016,6.50,CMT Secretariat,261600 - Human Resources - Travel & Subsistence
Solihull MBC,Managed Growth and Communities,Highways & Transport Services,Mailbox Car Park Limited ,22/12/2016,7.50,Places Dir Savings CS Cab,261600 - Human Resources - Travel & Subsistence
Solihull MBC,Adult Social Care,Central Services to the Public,Maplin Solihull B91 ,22/12/2016,45.98,Solihull Connect,271699 - Information Communications Technology - Telecommunications
Solihull MBC,Adult Social Care,Adult Social Care,Maplin Stratfavon Cv37,11/11/2016,16.66,Furniture & Equipment,271699 - Information Communications Technology - Telecommunications
Solihull MBC,Adult Social Care,Adult Social Care,Marks&Spencer PLC ,22/12/2016,140.00,Roundmead,111200 - Catering - Food & Beverages
Solihull MBC,Adult Social Care,Adult Social Care,Marks&Spencer PLC Sf,28/11/2016,4.30,Clients Expenses,111200 - Catering - Food & Beverages
Solihull MBC,Managed Growth and Communities - HRA,Housing Revenue Account,Max Spielmann Ltd ,22/12/2016,1.18,Purchase Card SCH Facilities Mgmt,191100 - Facilities & Management Services - Design & Photography
Solihull MBC,Managed Growth and Communities - HRA,Housing Revenue Account,Max Spielmann Ltd ,22/12/2016,28.32,Purchase Card SCH Facilities Mgmt,191100 - Facilities & Management Services - Design & Photography
Solihull MBC,Children's Services & Skills,Children & Education Services,Medical Foundation ,22/12/2016,60.00,Childrens Social Care Finance,201710 - Financial Services - Grants - Charitable
Solihull MBC,Adult Social Care,Adult Social Care,Melbicks Garden ,22/12/2016,1.55,25 Stapleton Drive,249999 - Horticultural - Not Elsewhere Classified
Solihull MBC,Adult Social Care,Adult Social Care,Melbicks Garden ,22/12/2016,2.30,25 Stapleton Drive,249999 - Horticultural - Not Elsewhere Classified
Solihull MBC,Adult Social Care,Adult Social Care,Melbicks Garden ,22/12/2016,2.30,25 Stapleton Drive,249999 - Horticultural - Not Elsewhere Classified
Solihull MBC,Adult Social Care,Adult Social Care,Montagu Pyke ,22/12/2016,17.94,25 Stapleton Drive,261600 - Human Resources - Travel & Subsistence
Solihull MBC,Resources,Central Services to the Public,Msft *<E02002Y4L2>,21/11/2016,97.52,IT Equipment & Software,271200 - Information Communications Technology - Hardware
Solihull MBC,Resources,Central Services to the Public,Nisa Supermarket ,22/12/2016,9.90,Organisational Development,111200 - Catering - Food & Beverages
Solihull MBC,Adult Social Care,Adult Social Care,Notcutts Garden,28/11/2016,4.40,Clients Expenses,249999 - Horticultural - Not Elsewhere Classified
Solihull MBC,Adult Social Care,Adult Social Care,Notcutts Garden,14/11/2016,5.25,Clients Expenses,249999 - Horticultural - Not Elsewhere Classified
Solihull MBC,Adult Social Care,Adult Social Care,Notcutts Garden,28/11/2016,7.95,Cleaning,249999 - Horticultural - Not Elsewhere Classified
Solihull MBC,Resources,Central Services to the Public,O2 UK CCA Payment ,22/12/2016,10.12,ICT Projects,271699 - Information Communications Technology - Telecommunications
Solihull MBC,Adult Social Care,Adult Social Care,Office-Inc.co.uk ,22/12/2016,18.52,PD - Day Care Green Acres,271600 - Information Communication Technology - Software - Customised & Bespoke
Solihull MBC,Adult Social Care,Adult Social Care,O'Neill's ,22/12/2016,16.78,25 Stapleton Drive,261600 - Human Resources - Travel & Subsistence
Solihull MBC,Adult Social Care,Cultural & Related Services,Onevisionimaging.com,23/11/2016,4.49,Materials,192000 - Facilities & Management Services - Reprographics
Solihull MBC,Adult Social Care,Cultural & Related Services,Onevisionimaging.com,14/11/2016,58.92,Materials,192000 - Facilities & Management Services - Reprographics
Solihull MBC,Adult Social Care,Adult Social Care,Paper & Print,01/12/2016,22.00,General Office Expenses,341100 - Stationery - Sundries
Solihull MBC,Children's Services - DSG Central.,Children & Education Services,Paperchase,29/11/2016,33.00,General Office Expenses,161000 - Domestic Goods - Commercial
Solihull MBC,Managed Growth and Communities,Highways & Transport Services,Park Mobile ,22/12/2016,2.80,Places Dir Savings CS Cab,261600 - Human Resources - Travel & Subsistence
Solihull MBC,Managed Growth and Communities,Environmental and Regulatory Services,Park Mobile ,22/12/2016,4.10,Crime And Disorder Reduction,261600 - Human Resources - Travel & Subsistence
Solihull MBC,Managed Growth and Communities,Environmental and Regulatory Services,Park Mobile ,22/12/2016,4.30,Crime And Disorder Reduction,261600 - Human Resources - Travel & Subsistence
Solihull MBC,Adult Social Care,Adult Social Care,Parkdean Holiday P ,22/12/2016,50.00,9 Hurst Green,291120 - Arts & Leisure Services - Organised Activities
Solihull MBC,Resources,Central Services to the Public,Paypal *Avangate Bv ,22/12/2016,30.01,ICT Projects,279999 - Information Communications Technology - Not Elsewhere Classified
Solihull MBC,Children's Services & Skills,Children & Education Services,Paypal *Petertapper ,22/12/2016,136.00,Music Service,171111 - Education - Audio Visual
Solihull MBC,Adult Social Care,Cultural & Related Services,Paypal *UKpaperroll,22/11/2016,61.45,Furniture & Equipment,341100 - Stationery - Sundries
Solihull MBC,Children's Services & Skills,Children & Education Services,Paypal *Via Paypal,11/11/2016,45.00,IT Equipment & Software,271430 - Information Communication Technology - Software - Commercial Off-The-Shelf
Solihull MBC,Children's Services & Skills,Children & Education Services,Paypal *Web Hosting,16/11/2016,29.17,IT Equipment & Software,279999 - Information Communications Technology - Not Elsewhere Classified
Solihull MBC,Children's Services & Skills,Children & Education Services,Paypal *Web Hosting,16/11/2016,29.17,IT Equipment & Software,279999 - Information Communications Technology - Not Elsewhere Classified
Solihull MBC,Resources,Central Services to the Public,Perfect Party ,22/12/2016,104.00,Organisational Development,161000 - Domestic Goods - Commercial
Solihull MBC,Resources,Children & Education Services,Post Office Counter,01/12/2016,9.19,General Office Expenses,301200 - Mail Services - Postage
Solihull MBC,Resources,Children & Education Services,Post Office Counter,07/11/2016,23.04,Postage & Courier Services,301200 - Mail Services - Postage
Solihull MBC,Adult Social Care,Adult Social Care,Postoffice Selfservice,25/11/2016,2.46,General Office Expenses,301200 - Mail Services - Postage
Solihull MBC,Adult Social Care,Adult Social Care,Posturite (UK) Ltd,18/11/2016,93.47,General Office Expenses,211000 - Furniture & Soft Furnishings - Commercial Furniture
Solihull MBC,Resources,Central Services to the Public,Posturite (UK) Ltd,10/11/2016,95.45,Furniture & Equipment,211000 - Furniture & Soft Furnishings - Commercial Furniture
Solihull MBC,Adult Social Care,Adult Social Care,Poundland Ltd,24/11/2016,8.00,General Office Expenses,169999 - Domestic Goods - Not Elsewhere Classified
Solihull MBC,Managed Growth and Communities - HRA,Housing Revenue Account,Poundland Ltd,22/11/2016,8.37,General Debtors,169999 - Domestic Goods - Not Elsewhere Classified
Solihull MBC,Adult Social Care,Adult Social Care,Poundland Ltd ,22/12/2016,8.00,25 Stapleton Drive,169999 - Domestic Goods - Not Elsewhere Classified
Solihull MBC,Public Health & Commissioning,Cultural & Related Services,Poundland Ltd ,22/12/2016,10.00,Leisure,169999 - Domestic Goods - Not Elsewhere Classified
Solihull MBC,Adult Social Care,Adult Social Care,Poundland Ltd ,22/12/2016,15.00,25 Stapleton Drive,169999 - Domestic Goods - Not Elsewhere Classified
Solihull MBC,Resources,Children & Education Services,Poundland Ltd 1713,01/12/2016,4.21,Catering Provisions,169999 - Domestic Goods - Not Elsewhere Classified
Solihull MBC,Children's Services & Skills,Children & Education Services,Poundland Ltd 1713,14/11/2016,8.33,General Office Expenses,169999 - Domestic Goods - Not Elsewhere Classified
Solihull MBC,Public Health & Commissioning,Cultural & Related Services,Poundland Ltd 1713 ,22/12/2016,3.00,Leisure,169999 - Domestic Goods - Not Elsewhere Classified
Solihull MBC,Managed Growth and Communities,Environmental and Regulatory Services,Poundland Ltd 1713 ,22/12/2016,12.00,Town Centres and Events,169999 - Domestic Goods - Not Elsewhere Classified
Solihull MBC,Children's Services & Skills,Children & Education Services,Premier Inn44014350,18/11/2016,-94.00,General Office Expenses,261000 - Human Resources - Accommodation
Solihull MBC,Managed Growth and Communities,Highways & Transport Services,Przcharge.Prezi.com ,22/12/2016,121.20,Places Dir Savings CS Cab,271200 - Information Communications Technology - Hardware
Solihull MBC,Adult Social Care,Adult Social Care,QE Foodcourt - Costa,25/11/2016,6.04,Clients Expenses,261600 - Human Resources - Travel & Subsistence
Solihull MBC,Managed Growth and Communities,Environmental and Regulatory Services,Rapid Racking Ltd ,22/12/2016,262.80,Licensing,102500 - Building Construction Materials - Timber
Solihull MBC,Managed Growth and Communities,Environmental and Regulatory Services,Rapid Racking Ltd ,22/12/2016,418.80,Licensing,102500 - Building Construction Materials - Timber
Solihull MBC,Adult Social Care,Adult Social Care,Reservoir ,22/12/2016,20.75,25 Stapleton Drive,261600 - Human Resources - Travel & Subsistence
Solihull MBC,Resources,Planning & Development Services,RICS Subs UK Cybs,29/11/2016,512.00,Grant & Subscription (SCITT),201711 - Financial Services - Grants - Non-charitable
Solihull MBC,Resources,Planning & Development Services,RICS Subs UK Cybs,22/11/2016,512.00,Grant & Subscription (SCITT),201711 - Financial Services - Grants - Non-charitable
Solihull MBC,Managed Growth and Communities,Cultural & Related Services,Rigby Taylor,25/11/2016,257.88,Materials,249999 - Horticultural - Not Elsewhere Classified
Solihull MBC,Adult Social Care,Central Services to the Public,Robert Dyas Holdng Ltd ,22/12/2016,5.97,Solihull Connect,101400 - Building Construction Materials - General Materials
Solihull MBC,Adult Social Care,Adult Social Care,Robert Dyas Holdng Ltd ,22/12/2016,15.81,ASC - ASM Management,101400 - Building Construction Materials - General Materials
Solihull MBC,Managed Growth and Communities - HRA,Housing Revenue Account,Royal Mail Pre-Pay ,22/12/2016,14.95,Purchase Card SCH Facilities Mgmt,301200 - Mail Services - Postage
Solihull MBC,Children's Services - DSG Central.,Children & Education Services,Ryanair     22400000Npl7F,15/11/2016,51.39,Purchase Card Statement Summary,369999 - Public Transport - Not Elsewhere Classified
Solihull MBC,Resources,Children & Education Services,Sainsbury's S/Mkt,11/11/2016,1.50,Catering Provisions,111200 - Catering - Food & Beverages
Solihull MBC,Adult Social Care,Adult Social Care,Sainsbury's S/Mkt,25/11/2016,2.85,Clients Expenses,111200 - Catering - Food & Beverages
Solihull MBC,Adult Social Care,Adult Social Care,Sainsbury's S/Mkt,25/11/2016,3.30,Clients Expenses,111200 - Catering - Food & Beverages
Solihull MBC,Resources,Children & Education Services,Sainsbury's S/Mkt,07/11/2016,4.00,Catering Provisions,111200 - Catering - Food & Beverages
Solihull MBC,Resources,Children & Education Services,Sainsbury's S/Mkt,11/11/2016,4.00,Catering Provisions,111200 - Catering - Food & Beverages
Solihull MBC,Resources,Children & Education Services,Sainsbury's S/Mkt,07/11/2016,7.00,Catering Provisions,111200 - Catering - Food & Beverages
Solihull MBC,Adult Social Care,Adult Social Care,Sainsbury's S/Mkt,23/11/2016,7.05,Clients Expenses,111200 - Catering - Food & Beverages
Solihull MBC,Adult Social Care,Adult Social Care,Sainsbury's S/Mkt,23/11/2016,7.05,Clients Expenses,111200 - Catering - Food & Beverages
Solihull MBC,Resources,Children & Education Services,Sainsbury's S/Mkt,07/11/2016,10.00,Catering Provisions,111200 - Catering - Food & Beverages
Solihull MBC,Adult Social Care,Adult Social Care,Sainsbury's S/Mkt,14/11/2016,13.90,Catering Provisions,111200 - Catering - Food & Beverages
Solihull MBC,Adult Social Care,Adult Social Care,Sainsbury's S/Mkt,23/11/2016,17.25,Cleaning,111200 - Catering - Food & Beverages
Solihull MBC,Adult Social Care,Adult Social Care,Sainsbury's S/Mkt,14/11/2016,19.00,Catering Provisions,111200 - Catering - Food & Beverages
Solihull MBC,Adult Social Care,Adult Social Care,Sainsbury's S/Mkt,18/11/2016,19.70,Catering Provisions,111200 - Catering - Food & Beverages
Solihull MBC,Adult Social Care,Adult Social Care,Sainsbury's S/Mkt,25/11/2016,21.35,Catering Provisions,111200 - Catering - Food & Beverages
Solihull MBC,Adult Social Care,Adult Social Care,Sainsbury's S/Mkt,23/11/2016,21.58,Catering Provisions,111200 - Catering - Food & Beverages
Solihull MBC,Adult Social Care,Adult Social Care,Sainsbury's S/Mkt,11/11/2016,26.80,Catering Provisions,111200 - Catering - Food & Beverages
Solihull MBC,Adult Social Care,Adult Social Care,Sainsbury's S/Mkt,04/11/2016,37.45,Catering Provisions,111200 - Catering - Food & Beverages
Solihull MBC,Adult Social Care,Adult Social Care,Sainsburys S/Mkts,09/11/2016,2.40,Catering Provisions,381100 - Vehicle Management - Fuel
Solihull MBC,Adult Social Care,Adult Social Care,Sainsburys S/Mkts,25/11/2016,4.00,Catering Provisions,111200 - Catering - Food & Beverages
Solihull MBC,Adult Social Care,Adult Social Care,Sainsburys S/Mkts,01/12/2016,9.66,Catering Provisions,111200 - Catering - Food & Beverages
Solihull MBC,Resources,Children & Education Services,Sainsburys S/Mkts,01/12/2016,15.05,Catering Provisions,111200 - Catering - Food & Beverages
Solihull MBC,Managed Growth and Communities,Environmental and Regulatory Services,Sainsburys Smkt ,22/12/2016,25.00,Town Centres and Events,111200 - Catering - Food & Beverages
Solihull MBC,Resources,Children & Education Services,Sainsburys Smkts ,22/12/2016,4.45,Catering Management,111200 - Catering - Food & Beverages
Solihull MBC,Adult Social Care,Adult Social Care,Sainsburys Smkts ,22/12/2016,8.11,9 Hurst Green,111200 - Catering - Food & Beverages
Solihull MBC,Adult Social Care,Adult Social Care,Sainsburys Smkts ,22/12/2016,10.30,9 Hurst Green,111200 - Catering - Food & Beverages
Solihull MBC,Adult Social Care,Adult Social Care,Sainsburys Smkts ,22/12/2016,11.70,9 Hurst Green,111200 - Catering - Food & Beverages
Solihull MBC,Adult Social Care,Adult Social Care,Sainsburys Smkts ,22/12/2016,15.85,9 Hurst Green,111200 - Catering - Food & Beverages
Solihull MBC,Adult Social Care,Adult Social Care,Sainsburys Smkts ,22/12/2016,15.98,9 Hurst Green,111200 - Catering - Food & Beverages
Solihull MBC,Adult Social Care,Adult Social Care,Sainsburys Smkts ,22/12/2016,40.55,9 Downing Close,111200 - Catering - Food & Beverages
Solihull MBC,Adult Social Care,Adult Social Care,Sainsburys Smkts ,22/12/2016,49.45,9 Hurst Green,111200 - Catering - Food & Beverages
Solihull MBC,Adult Social Care,Adult Social Care,Sainsburys Smkts ,22/12/2016,145.39,1 Coppice Close,111200 - Catering - Food & Beverages
Solihull MBC,Adult Social Care,Adult Social Care,Sainsburys Superma,29/11/2016,7.10,Catering Provisions,111200 - Catering - Food & Beverages
Solihull MBC,Adult Social Care,Adult Social Care,Sainsburys Superma,28/11/2016,21.35,Catering Provisions,111200 - Catering - Food & Beverages
Solihull MBC,Adult Social Care,Adult Social Care,Saracens Head,29/11/2016,5.99,Clients Expenses,261600 - Human Resources - Travel & Subsistence
Solihull MBC,Adult Social Care,Adult Social Care,Saracens Head,29/11/2016,6.24,Catering Provisions,261600 - Human Resources - Travel & Subsistence
Solihull MBC,Adult Social Care,Adult Social Care,Saracens Head,23/11/2016,25.49,Catering Provisions,261600 - Human Resources - Travel & Subsistence
Solihull MBC,Adult Social Care,Adult Social Care,Saracens Head,09/11/2016,26.32,Catering Provisions,261600 - Human Resources - Travel & Subsistence
Solihull MBC,Adult Social Care,Adult Social Care,Saracens Head ,22/12/2016,6.99,25 Stapleton Drive,261600 - Human Resources - Travel & Subsistence
Solihull MBC,Adult Social Care,Adult Social Care,Saracens Head ,22/12/2016,25.40,25 Stapleton Drive,261600 - Human Resources - Travel & Subsistence
Solihull MBC,Managed Growth and Communities,Highways & Transport Services,Screwfix Direct ,22/12/2016,71.91,Projects Team,102500 - Building Construction Materials - Timber
Solihull MBC,Managed Growth and Communities - HRA,Housing Revenue Account,Screwfix Direct Lt,30/11/2016,1.65,General Debtors,102500 - Building Construction Materials - Timber
Solihull MBC,Managed Growth and Communities - HRA,Housing Revenue Account,Screwfix Direct Lt,30/11/2016,36.66,General Debtors,102500 - Building Construction Materials - Timber
Solihull MBC,Adult Social Care,Adult Social Care,Seagull Fish Bar ,22/12/2016,16.30,25 Stapleton Drive,261600 - Human Resources - Travel & Subsistence
Solihull MBC,Managed Growth and Communities,Cultural & Related Services,Sheldon Hire Ltd ,22/12/2016,50.40,Park Rangers,219999 - Furniture & Soft Furnishings - Not Elsewhere Classified
Solihull MBC,Resources,Corporate & Democratic Core,Shell Shirley Tria,11/11/2016,65.83,Other Transport Costs,381100 - Vehicle Management - Fuel
Solihull MBC,Adult Social Care,Adult Social Care,SMBC - Arts Cafe,07/11/2016,4.29,Clients Expenses,151900 - Consultancy - Management
Solihull MBC,Adult Social Care,Adult Social Care,SMBC - Arts Cafe,07/11/2016,6.15,Clients Expenses,151900 - Consultancy - Management
Solihull MBC,Adult Social Care,Adult Social Care,Solihull MBC,22/12/2016,19.00,1 Coppice Close,151900 - Consultancy - Management
Solihull MBC,Adult Social Care,Adult Social Care,Solihull MBC,22/12/2016,19.00,1 Coppice Close,151900 - Consultancy - Management
Solihull MBC,Managed Growth and Communities,Highways & Transport Services,Solihull Station T O ,22/12/2016,4.30,Places Dir Savings CS Cab,261600 - Human Resources - Travel & Subsistence
Solihull MBC,Managed Growth and Communities,Highways & Transport Services,Solihull Station T O ,22/12/2016,5.50,Places Dir Savings CS Cab,261600 - Human Resources - Travel & Subsistence
Solihull MBC,Managed Growth and Communities,Environmental and Regulatory Services,Solihull Station T O ,22/12/2016,5.50,Trading Standards,261600 - Human Resources - Travel & Subsistence
Solihull MBC,Managed Growth and Communities,Highways & Transport Services,Solihull Station T/O,30/11/2016,5.50,Car Allowances: Officers,261600 - Human Resources - Travel & Subsistence
Solihull MBC,Adult Social Care,Adult Social Care,SP� Sasco Planners ,22/12/2016,13.00,PD - Day Care Green Acres,341100 - Stationery - Sundries
Solihull MBC,Public Health & Commissioning,Cultural & Related Services,Sportsdirect 137 ,22/12/2016,4.52,Leisure,331300 - Sports & Playground Equipment & Maintenance - Sports Equipment
Solihull MBC,Adult Social Care,Adult Social Care,St Bernards Grange ,22/12/2016,3.15,25 Stapleton Drive,261600 - Human Resources - Travel & Subsistence
Solihull MBC,Adult Social Care,Adult Social Care,St Bernards Grange ,22/12/2016,4.30,25 Stapleton Drive,261600 - Human Resources - Travel & Subsistence
Solihull MBC,Adult Social Care,Adult Social Care,St Bernards Grange ,22/12/2016,8.00,25 Stapleton Drive,261600 - Human Resources - Travel & Subsistence
Solihull MBC,Adult Social Care,Adult Social Care,St Bernards Grange ,22/12/2016,8.00,25 Stapleton Drive,261600 - Human Resources - Travel & Subsistence
Solihull MBC,Adult Social Care,Adult Social Care,St Bernards Grange ,22/12/2016,14.87,25 Stapleton Drive,261600 - Human Resources - Travel & Subsistence
Solihull MBC,Adult Social Care,Adult Social Care,St Bernards Grange ,22/12/2016,25.50,25 Stapleton Drive,261600 - Human Resources - Travel & Subsistence
Solihull MBC,Adult Social Care,Adult Social Care,St Bernards Grange ,22/12/2016,34.00,25 Stapleton Drive,261600 - Human Resources - Travel & Subsistence
Solihull MBC,Adult Social Care,Adult Social Care,St Bernards Grange ,22/12/2016,34.00,25 Stapleton Drive,261600 - Human Resources - Travel & Subsistence
Solihull MBC,Resources,Central Services to the Public,Surveymonkey,09/11/2016,250.00,Materials,271600 - Information Communication Technology - Software - Customised & Bespoke
Solihull MBC,Resources,Central Services to the Public,Surveymonkey.com,28/11/2016,249.17,IT Equipment & Software,161000 - Domestic Goods - Commercial
Solihull MBC,Managed Growth and Communities - HRA,Housing Revenue Account,Sym*Secure Site SSL,18/11/2016,399.00,IT Equipment & Software,279999 - Information Communications Technology - Not Elsewhere Classified
Solihull MBC,Children's Services & Skills,Children & Education Services,Tesco Direct,03/11/2016,179.00,Clients Expenses,161000 - Domestic Goods - Commercial
Solihull MBC,Children's Services & Skills,Children & Education Services,Tesco Store 2250 ,22/12/2016,12.96,Welfare Service,111200 - Catering - Food & Beverages
Solihull MBC,Adult Social Care,Adult Social Care,Tesco Store 2624,15/11/2016,7.00,Catering Provisions,111200 - Catering - Food & Beverages
Solihull MBC,Adult Social Care,Adult Social Care,Tesco Store 3188,22/11/2016,1.48,Catering Provisions,111200 - Catering - Food & Beverages
Solihull MBC,Adult Social Care,Adult Social Care,Tesco Store 3188,13/11/2016,2.00,Catering Provisions,111200 - Catering - Food & Beverages
Solihull MBC,Adult Social Care,Adult Social Care,Tesco Store 3188,16/11/2016,2.18,Catering Provisions,111200 - Catering - Food & Beverages
Solihull MBC,Adult Social Care,Adult Social Care,Tesco Store 3188,21/11/2016,3.33,Cleaning,111200 - Catering - Food & Beverages
Solihull MBC,Adult Social Care,Adult Social Care,Tesco Store 3188,30/11/2016,4.52,Catering Provisions,111200 - Catering - Food & Beverages
Solihull MBC,Adult Social Care,Adult Social Care,Tesco Store 3188,04/11/2016,4.65,Clients Expenses,111200 - Catering - Food & Beverages
Solihull MBC,Adult Social Care,Adult Social Care,Tesco Store 3188,28/11/2016,5.05,Catering Provisions,111200 - Catering - Food & Beverages
Solihull MBC,Adult Social Care,Adult Social Care,Tesco Store 3188,07/11/2016,5.37,Cleaning,111200 - Catering - Food & Beverages
Solihull MBC,Adult Social Care,Adult Social Care,Tesco Store 3188,15/11/2016,6.63,Clients Expenses,111200 - Catering - Food & Beverages
Solihull MBC,Adult Social Care,Adult Social Care,Tesco Store 3188,13/11/2016,7.50,Cleaning,111200 - Catering - Food & Beverages
Solihull MBC,Adult Social Care,Adult Social Care,Tesco Store 3188,01/12/2016,8.96,Furniture & Equipment,111200 - Catering - Food & Beverages
Solihull MBC,Adult Social Care,Adult Social Care,Tesco Store 3188,21/11/2016,9.20,Cleaning,111200 - Catering - Food & Beverages
Solihull MBC,Adult Social Care,Adult Social Care,Tesco Store 3188,15/11/2016,10.00,Cleaning,111200 - Catering - Food & Beverages
Solihull MBC,Adult Social Care,Adult Social Care,Tesco Store 3188,09/11/2016,10.52,Catering Provisions,111200 - Catering - Food & Beverages
Solihull MBC,Adult Social Care,Adult Social Care,Tesco Store 3188,09/11/2016,12.44,Cleaning,111200 - Catering - Food & Beverages
Solihull MBC,Adult Social Care,Adult Social Care,Tesco Store 3188,29/11/2016,12.70,Cleaning,111200 - Catering - Food & Beverages
Solihull MBC,Adult Social Care,Adult Social Care,Tesco Store 3188,22/11/2016,12.75,Cleaning,111200 - Catering - Food & Beverages
Solihull MBC,Adult Social Care,Adult Social Care,Tesco Store 3188,17/11/2016,12.90,Catering Provisions,111200 - Catering - Food & Beverages
Solihull MBC,Adult Social Care,Adult Social Care,Tesco Store 3188,22/11/2016,13.60,Purchase Card Statement Summary,111200 - Catering - Food & Beverages
Solihull MBC,Adult Social Care,Adult Social Care,Tesco Store 3188,15/11/2016,14.19,Purchase Card Statement Summary,111200 - Catering - Food & Beverages
Solihull MBC,Adult Social Care,Adult Social Care,Tesco Store 3188,28/11/2016,16.96,Cleaning,111200 - Catering - Food & Beverages
Solihull MBC,Adult Social Care,Adult Social Care,Tesco Store 3188,08/11/2016,17.00,Purchase Card Statement Summary,111200 - Catering - Food & Beverages
Solihull MBC,Adult Social Care,Adult Social Care,Tesco Store 3188,09/11/2016,17.51,Catering Provisions,111200 - Catering - Food & Beverages
Solihull MBC,Adult Social Care,Adult Social Care,Tesco Store 3188,18/11/2016,17.70,Cleaning,111200 - Catering - Food & Beverages
Solihull MBC,Adult Social Care,Adult Social Care,Tesco Store 3188,30/11/2016,19.27,Catering Provisions,111200 - Catering - Food & Beverages
Solihull MBC,Adult Social Care,Adult Social Care,Tesco Store 3188,28/11/2016,19.79,Cleaning,111200 - Catering - Food & Beverages
Solihull MBC,Adult Social Care,Adult Social Care,Tesco Store 3188,14/11/2016,20.29,Cleaning,111200 - Catering - Food & Beverages
Solihull MBC,Adult Social Care,Adult Social Care,Tesco Store 3188,16/11/2016,21.67,Cleaning,111200 - Catering - Food & Beverages
Solihull MBC,Adult Social Care,Adult Social Care,Tesco Store 3188,18/11/2016,22.25,Cleaning,111200 - Catering - Food & Beverages
Solihull MBC,Adult Social Care,Adult Social Care,Tesco Store 3188,17/11/2016,23.79,Cleaning,111200 - Catering - Food & Beverages
Solihull MBC,Adult Social Care,Adult Social Care,Tesco Store 3188,26/11/2016,25.85,Cleaning,111200 - Catering - Food & Beverages
Solihull MBC,Adult Social Care,Adult Social Care,Tesco Store 3188,28/11/2016,28.15,Cleaning,111200 - Catering - Food & Beverages
Solihull MBC,Adult Social Care,Adult Social Care,Tesco Store 3188,18/11/2016,39.64,Catering Provisions,111200 - Catering - Food & Beverages
Solihull MBC,Adult Social Care,Adult Social Care,Tesco Store 3188,01/12/2016,50.82,Catering Provisions,111200 - Catering - Food & Beverages
Solihull MBC,Adult Social Care,Adult Social Care,Tesco Store 3188,28/11/2016,55.37,Catering Provisions,111200 - Catering - Food & Beverages
Solihull MBC,Adult Social Care,Adult Social Care,Tesco Store 3188,28/11/2016,66.35,Catering Provisions,111200 - Catering - Food & Beverages
Solihull MBC,Adult Social Care,Adult Social Care,Tesco Store 3188,25/11/2016,67.71,Catering Provisions,111200 - Catering - Food & Beverages
Solihull MBC,Adult Social Care,Adult Social Care,Tesco Store 3188,29/11/2016,69.92,Purchase Card Statement Summary,111200 - Catering - Food & Beverages
Solihull MBC,Adult Social Care,Adult Social Care,Tesco Store 3188,21/11/2016,70.55,Catering Provisions,111200 - Catering - Food & Beverages
Solihull MBC,Adult Social Care,Adult Social Care,Tesco Store 3188,18/11/2016,70.58,Catering Provisions,111200 - Catering - Food & Beverages
Solihull MBC,Adult Social Care,Adult Social Care,Tesco Store 3188,07/11/2016,71.17,Catering Provisions,111200 - Catering - Food & Beverages
Solihull MBC,Adult Social Care,Adult Social Care,Tesco Store 3188,21/11/2016,72.14,Catering Provisions,111200 - Catering - Food & Beverages
Solihull MBC,Adult Social Care,Adult Social Care,Tesco Store 3188,09/11/2016,76.22,Catering Provisions,111200 - Catering - Food & Beverages
Solihull MBC,Adult Social Care,Adult Social Care,Tesco Store 3188,14/11/2016,82.36,Catering Provisions,111200 - Catering - Food & Beverages
Solihull MBC,Adult Social Care,Adult Social Care,Tesco Store 3188,15/11/2016,85.41,Purchase Card Statement Summary,111200 - Catering - Food & Beverages
Solihull MBC,Adult Social Care,Adult Social Care,Tesco Store 3188,11/11/2016,86.26,Catering Provisions,111200 - Catering - Food & Beverages
Solihull MBC,Adult Social Care,Adult Social Care,Tesco Store 3188,08/11/2016,91.42,Purchase Card Statement Summary,111200 - Catering - Food & Beverages
Solihull MBC,Adult Social Care,Adult Social Care,Tesco Store 3188,22/11/2016,93.27,Purchase Card Statement Summary,111200 - Catering - Food & Beverages
Solihull MBC,Adult Social Care,Adult Social Care,Tesco Store 3188,16/11/2016,95.44,Catering Provisions,111200 - Catering - Food & Beverages
Solihull MBC,Adult Social Care,Adult Social Care,Tesco Store 3188,28/11/2016,101.30,Catering Provisions,111200 - Catering - Food & Beverages
Solihull MBC,Adult Social Care,Adult Social Care,Tesco Store 3188,22/11/2016,101.86,Catering Provisions,111200 - Catering - Food & Beverages
Solihull MBC,Adult Social Care,Adult Social Care,Tesco Store 3188,30/11/2016,103.06,Catering Provisions,111200 - Catering - Food & Beverages
Solihull MBC,Adult Social Care,Adult Social Care,Tesco Store 3188,05/11/2016,110.07,Catering Provisions,111200 - Catering - Food & Beverages
Solihull MBC,Adult Social Care,Adult Social Care,Tesco Store 3188,15/11/2016,126.15,Catering Provisions,111200 - Catering - Food & Beverages
Solihull MBC,Adult Social Care,Adult Social Care,Tesco Store 3188,26/11/2016,159.88,Catering Provisions,111200 - Catering - Food & Beverages
Solihull MBC,Adult Social Care,Adult Social Care,Tesco Store 3188 ,22/12/2016,5.85,1 Coppice Close,111200 - Catering - Food & Beverages
Solihull MBC,Adult Social Care,Adult Social Care,Tesco Store 3188 ,22/12/2016,11.00,9 Downing Close,111200 - Catering - Food & Beverages
Solihull MBC,Adult Social Care,Adult Social Care,Tesco Store 3188 ,22/12/2016,11.38,9 Downing Close,111200 - Catering - Food & Beverages
Solihull MBC,Adult Social Care,Adult Social Care,Tesco Store 3188 ,22/12/2016,12.60,9 Downing Close,111200 - Catering - Food & Beverages
Solihull MBC,Adult Social Care,Adult Social Care,Tesco Store 3188 ,22/12/2016,15.55,1 Coppice Close,111200 - Catering - Food & Beverages
Solihull MBC,Adult Social Care,Adult Social Care,Tesco Store 3188 ,22/12/2016,26.30,9 Downing Close,111200 - Catering - Food & Beverages
Solihull MBC,Adult Social Care,Adult Social Care,Tesco Store 3188 ,22/12/2016,29.28,9 Downing Close,111200 - Catering - Food & Beverages
Solihull MBC,Adult Social Care,Adult Social Care,Tesco Store 3188 ,22/12/2016,35.50,8 Downing Close,111200 - Catering - Food & Beverages
Solihull MBC,Adult Social Care,Adult Social Care,Tesco Store 3188 ,22/12/2016,43.04,9 Downing Close,111200 - Catering - Food & Beverages
Solihull MBC,Adult Social Care,Adult Social Care,Tesco Store 3188 ,22/12/2016,71.87,1 Coppice Close,111200 - Catering - Food & Beverages
Solihull MBC,Adult Social Care,Adult Social Care,Tesco Store 3188 ,22/12/2016,73.62,1 Coppice Close,111200 - Catering - Food & Beverages
Solihull MBC,Adult Social Care,Adult Social Care,Tesco Store 3188 ,22/12/2016,76.77,1 Coppice Close,111200 - Catering - Food & Beverages
Solihull MBC,Adult Social Care,Adult Social Care,Tesco Store 3188 ,22/12/2016,78.14,8 Downing Close,111200 - Catering - Food & Beverages
Solihull MBC,Adult Social Care,Adult Social Care,Tesco Store 3188 ,22/12/2016,120.15,9 Downing Close,111200 - Catering - Food & Beverages
Solihull MBC,Adult Social Care,Adult Social Care,Tesco Store 3188 ,22/12/2016,136.12,9 Downing Close,111200 - Catering - Food & Beverages
Solihull MBC,Adult Social Care,Adult Social Care,Tesco Store 3188 ,22/12/2016,138.87,9 Downing Close,111200 - Catering - Food & Beverages
Solihull MBC,Adult Social Care,Adult Social Care,Tesco Stores 2219,03/11/2016,2.00,Catering Provisions,111200 - Catering - Food & Beverages
Solihull MBC,Children's Services & Skills,Children & Education Services,Tesco Stores 2219 ,22/12/2016,5.20,"Referral, Assess & C Protect (Admin)",111200 - Catering - Food & Beverages
Solihull MBC,Adult Social Care,Adult Social Care,Tesco Stores 2624,07/11/2016,0.81,Cleaning,111200 - Catering - Food & Beverages
Solihull MBC,Adult Social Care,Adult Social Care,Tesco Stores 2624,07/11/2016,1.23,Catering Provisions,111200 - Catering - Food & Beverages
Solihull MBC,Adult Social Care,Cultural & Related Services,Tesco Stores 5114 ,22/12/2016,119.97,Theatre Bar,111200 - Catering - Food & Beverages
Solihull MBC,Resources,Children & Education Services,Tesco Stores 5203 ,22/12/2016,4.00,Catering Management,111200 - Catering - Food & Beverages
Solihull MBC,Adult Social Care,Cultural & Related Services,Tesco Stores 5203 ,22/12/2016,84.00,Theatre Bar,111200 - Catering - Food & Beverages
Solihull MBC,Adult Social Care,Adult Social Care,Tesco-Stores 3188,04/11/2016,4.75,Clients Expenses,111200 - Catering - Food & Beverages
Solihull MBC,Adult Social Care,Adult Social Care,Tesco-Stores 3188,30/11/2016,9.75,Cleaning,111200 - Catering - Food & Beverages
Solihull MBC,Adult Social Care,Adult Social Care,Tesco-Stores 3188,15/11/2016,10.05,Clients Expenses,111200 - Catering - Food & Beverages
Solihull MBC,Adult Social Care,Adult Social Care,Tesco-Stores 3188,09/11/2016,10.55,Cleaning,111200 - Catering - Food & Beverages
Solihull MBC,Adult Social Care,Adult Social Care,Tesco-Stores 3188,25/11/2016,14.82,Catering Provisions,111200 - Catering - Food & Beverages
Solihull MBC,Resources,Children & Education Services,Tesco-Stores 3188 ,22/12/2016,5.00,Catering Management,111200 - Catering - Food & Beverages
Solihull MBC,Resources,Children & Education Services,Tesco-Stores 3188 ,22/12/2016,5.00,Catering Management,111200 - Catering - Food & Beverages
Solihull MBC,Resources,Children & Education Services,Tesco-Stores 3188 ,22/12/2016,6.00,Catering Management,111200 - Catering - Food & Beverages
Solihull MBC,Resources,Children & Education Services,Tesco-Stores 3188 ,22/12/2016,6.20,Catering Management,111200 - Catering - Food & Beverages
Solihull MBC,Resources,Children & Education Services,Tesco-Stores 3188 ,22/12/2016,7.38,Catering Management,111200 - Catering - Food & Beverages
Solihull MBC,Resources,Children & Education Services,Tesco-Stores 3188 ,22/12/2016,8.90,Catering Management,111200 - Catering - Food & Beverages
Solihull MBC,Resources,Children & Education Services,Tesco-Stores 3188 ,22/12/2016,10.80,Catering Management,111200 - Catering - Food & Beverages
Solihull MBC,Adult Social Care,Adult Social Care,Tesco-Stores 6463,04/11/2016,44.31,Catering Provisions,111200 - Catering - Food & Beverages
Solihull MBC,Adult Social Care,Adult Social Care,The Big Fish Restauran ,22/12/2016,41.80,25 Stapleton Drive,261600 - Human Resources - Travel & Subsistence
Solihull MBC,Managed Growth and Communities,Environmental and Regulatory Services,The Chiltern Rlywy ,22/12/2016,5.50,Licensing,261600 - Human Resources - Travel & Subsistence
Solihull MBC,Managed Growth and Communities,Highways & Transport Services,The Chiltern Rlywy ,22/12/2016,5.50,Places Dir Savings CS Cab,261600 - Human Resources - Travel & Subsistence
Solihull MBC,Resources,Central Services to the Public,The Chiltern Rlywy ,22/12/2016,5.50,CMT Secretariat,261600 - Human Resources - Travel & Subsistence
Solihull MBC,Managed Growth and Communities,Highways & Transport Services,The Chiltern Rlywy ,22/12/2016,5.50,Places Dir Savings CS Cab,261600 - Human Resources - Travel & Subsistence
Solihull MBC,Resources,Central Services to the Public,The Chiltern Rlywy ,22/12/2016,52.10,CMT Secretariat,261600 - Human Resources - Travel & Subsistence
Solihull MBC,Adult Social Care,Adult Social Care,The National Trust,04/11/2016,5.35,Clients Expenses,201710 - Financial Services - Grants - Charitable
Solihull MBC,Adult Social Care,Adult Social Care,The National Trust,04/11/2016,8.00,Clients Expenses,201710 - Financial Services - Grants - Charitable
Solihull MBC,Resources,Children & Education Services,The Post Office,26/11/2016,15.60,General Office Expenses,301200 - Mail Services - Postage
Solihull MBC,Resources,Children & Education Services,The Post Office ,22/12/2016,7.95,Catering Management,301200 - Mail Services - Postage
Solihull MBC,Adult Social Care,Adult Social Care,The Post Office ,22/12/2016,13.20,PD - Occupational Therapy Team,301200 - Mail Services - Postage
Solihull MBC,Adult Social Care,Adult Social Care,The Range,17/11/2016,5.99,Other Premise Costs,169999 - Domestic Goods - Not Elsewhere Classified
Solihull MBC,Managed Growth and Communities - HRA,Housing Revenue Account,The St John S Hotel F And ,22/12/2016,944.25,Purchase Card SCH Facilities Mgmt,261000 - Human Resources - Accommodation
Solihull MBC,Managed Growth and Communities,Highways & Transport Services,Thrifty Car And Van Re ,22/12/2016,364.68,Projects Team,381210 - Vehicle Management - Hire
Solihull MBC,Adult Social Care,Cultural & Related Services,Times Newspapers Ltd,25/11/2016,30.33,Materials,349999 - Stationery - Not Elsewhere Classified
Solihull MBC,Adult Social Care,Adult Social Care,Timpson Group PLC ,22/12/2016,16.50,PD - Occupational Therapy Team,161000 - Domestic Goods - Commercial
Solihull MBC,Managed Growth and Communities,Other Housing Services,Timpson Ltd ,22/12/2016,26.60,Policy + Spatial Planning,149999 - Clothing - Not Elsewhere Classified
Solihull MBC,Adult Social Care,Cultural & Related Services,TME*Time Magazine,16/11/2016,41.58,Materials,161000 - Domestic Goods - Commercial
Solihull MBC,Managed Growth and Communities,Highways & Transport Services,Toolman Yardley Limited,08/11/2016,12.46,Materials,101400 - Building Construction Materials - General Materials
Solihull MBC,Managed Growth and Communities,Cultural & Related Services,Touchwood Solihull ,22/12/2016,4.00,Park Rangers,261600 - Human Resources - Travel & Subsistence
Solihull MBC,Managed Growth and Communities,Cultural & Related Services,Touchwood Solihull ,22/12/2016,4.60,Park Rangers,261600 - Human Resources - Travel & Subsistence
Solihull MBC,Children's Services & Skills,Children & Education Services,Trainline,07/11/2016,62.73,Clients Transport Costs,261600 - Human Resources - Travel & Subsistence
Solihull MBC,Children's Services & Skills,Children & Education Services,Trainline,03/11/2016,126.99,Purchase Card Statement Summary,261600 - Human Resources - Travel & Subsistence
Solihull MBC,Managed Growth and Communities - HRA,Housing Revenue Account,Trainline ,22/12/2016,-71.00,Purchase Card SCH Central Admin,261600 - Human Resources - Travel & Subsistence
Solihull MBC,Children's Services & Skills,Children & Education Services,Trainline ,22/12/2016,35.14,Welfare Service,261600 - Human Resources - Travel & Subsistence
Solihull MBC,Adult Social Care,Adult Social Care,Trainline ,22/12/2016,99.45,25 Stapleton Drive,261600 - Human Resources - Travel & Subsistence
Solihull MBC,Managed Growth and Communities - HRA,Housing Revenue Account,Travelodge Agent ,22/12/2016,98.50,Purchase Card SCH Central Admin,261000 - Human Resources - Accommodation
Solihull MBC,Resources,Central Services to the Public,Travelodge Website,07/11/2016,-89.12,Other Employee Costs,261000 - Human Resources - Accommodation
Solihull MBC,Children's Services - DSG Central.,Children & Education Services,Travelodge Website,10/11/2016,69.96,Car Allowances: Officers,261000 - Human Resources - Accommodation
Solihull MBC,Resources,Central Services to the Public,Travelodge Website,03/11/2016,93.29,Other Employee Costs,261000 - Human Resources - Accommodation
Solihull MBC,Managed Growth and Communities,Cultural & Related Services,Tudor Environmental ,22/12/2016,107.40,Park Rangers,249999 - Horticultural - Not Elsewhere Classified
Solihull MBC,Resources,Other Housing Services,Tvlicensing.co.uk,17/11/2016,145.50,General Office Expenses,151900 - Consultancy - Management
Solihull MBC,Children's Services & Skills,Children & Education Services,Tvlicensing.co.uk ,22/12/2016,145.50,Childrens Social Care Finance,151900 - Consultancy - Management
Solihull MBC,Children's Services & Skills,Children & Education Services,Virgin Trains,29/11/2016,152.10,Car Allowances: Officers,261600 - Human Resources - Travel & Subsistence
Solihull MBC,Adult Social Care,Cultural & Related Services,Vistapr*Vistaprint.UK ,22/12/2016,67.17,Theatre Bar,349999 - Stationery - Not Elsewhere Classified
Solihull MBC,Children's Services & Skills,Children & Education Services,Vodafone Ltd ,22/12/2016,109.00,Childrens Social Care Finance,271699 - Information Communications Technology - Telecommunications
Solihull MBC,Resources,Central Services to the Public,W M Morrison,27/11/2016,17.74,General Office Expenses,111200 - Catering - Food & Beverages
Solihull MBC,Resources,Children & Education Services,W M Morrisons,26/11/2016,3.00,Catering Provisions,111200 - Catering - Food & Beverages
Solihull MBC,Resources,Corporate & Democratic Core,W M Morrisons,08/11/2016,3.75,Materials,111200 - Catering - Food & Beverages
Solihull MBC,Adult Social Care,Adult Social Care,W M Morrisons,10/11/2016,4.49,Catering Provisions,111200 - Catering - Food & Beverages
Solihull MBC,Adult Social Care,Adult Social Care,W M Morrisons,07/11/2016,7.59,Catering Provisions,111200 - Catering - Food & Beverages
Solihull MBC,Resources,Children & Education Services,W M Morrisons,01/12/2016,21.10,Catering Provisions,111200 - Catering - Food & Beverages
Solihull MBC,Resources,Other Housing Services,W M Morrisons,18/11/2016,28.36,General Office Expenses,111200 - Catering - Food & Beverages
Solihull MBC,Adult Social Care,Adult Social Care,W M Morrisons,04/11/2016,29.85,Catering Provisions,111200 - Catering - Food & Beverages
Solihull MBC,Children's Services & Skills,Children & Education Services,W M Morrisons ,22/12/2016,7.52,Welfare Service,111200 - Catering - Food & Beverages
Solihull MBC,Resources,Corporate & Democratic Core,W M Morrisons ,22/12/2016,9.48,Director Business Support,111200 - Catering - Food & Beverages
Solihull MBC,Managed Growth and Communities - HRA,Housing Revenue Account,W M Morrisons ,22/12/2016,15.50,Purchase Card SCH Central Admin,111200 - Catering - Food & Beverages
Solihull MBC,Resources,Children & Education Services,W M Morrisons ,22/12/2016,18.05,Catering Management,111200 - Catering - Food & Beverages
Solihull MBC,Managed Growth and Communities - HRA,Housing Revenue Account,W M Morrisons ,22/12/2016,20.00,Purchase Card SCH Facilities Mgmt,111200 - Catering - Food & Beverages
Solihull MBC,Adult Social Care,Adult Social Care,W M Morrisons ,22/12/2016,27.05,9 Hurst Green,111200 - Catering - Food & Beverages
Solihull MBC,Adult Social Care,Adult Social Care,W M Morrisons ,22/12/2016,114.97,9 Hurst Green,111200 - Catering - Food & Beverages
Solihull MBC,Adult Social Care,Adult Social Care,W M Morrisons ,22/12/2016,135.23,9 Hurst Green,111200 - Catering - Food & Beverages
Solihull MBC,Adult Social Care,Adult Social Care,W M Morrisons.com,13/11/2016,59.03,Catering Provisions,111200 - Catering - Food & Beverages
Solihull MBC,Adult Social Care,Adult Social Care,W M Morrisons.com,27/11/2016,98.85,Catering Provisions,111200 - Catering - Food & Beverages
Solihull MBC,Adult Social Care,Adult Social Care,W M Morrisons.com,20/11/2016,105.01,Catering Provisions,111200 - Catering - Food & Beverages
Solihull MBC,Adult Social Care,Cultural & Related Services,Waitrose 642 ,22/12/2016,2.99,Theatre Bar,111200 - Catering - Food & Beverages
Solihull MBC,Adult Social Care,Cultural & Related Services,Waitrose 642 ,22/12/2016,27.38,Theatre Bar,111200 - Catering - Food & Beverages
Solihull MBC,Children's Services & Skills,Children & Education Services,West Coast Trains,08/11/2016,10.00,Clients Transport Costs,261600 - Human Resources - Travel & Subsistence
Solihull MBC,Children's Services & Skills,Children & Education Services,West Coast Trains,08/11/2016,10.00,Clients Transport Costs,261600 - Human Resources - Travel & Subsistence
Solihull MBC,Resources,Central Services to the Public,West Midlands Trvl,07/11/2016,60.50,Car Allowances: Officers,361300 - Public Transport - Passenger Transport
Solihull MBC,Children's Services & Skills,Children & Education Services,West Midlands Trvl ,22/12/2016,210.00,Childrens Social Care Finance,361300 - Public Transport - Passenger Transport
Solihull MBC,Managed Growth and Communities,Other Housing Services,WH Smith ,22/12/2016,-7.48,Policy + Spatial Planning,349999 - Stationery - Not Elsewhere Classified
Solihull MBC,Managed Growth and Communities,Other Housing Services,WH Smith ,22/12/2016,7.48,Policy + Spatial Planning,349999 - Stationery - Not Elsewhere Classified
Solihull MBC,Managed Growth and Communities,Other Housing Services,WH Smith ,22/12/2016,7.48,Policy + Spatial Planning,349999 - Stationery - Not Elsewhere Classified
Solihull MBC,Adult Social Care,Cultural & Related Services,WH Smith ,22/12/2016,9.99,Theatre Bar,349999 - Stationery - Not Elsewhere Classified
Solihull MBC,Adult Social Care,Cultural & Related Services,Which?,29/11/2016,31.00,Materials,349999 - Stationery - Not Elsewhere Classified
Solihull MBC,Managed Growth and Communities,Highways & Transport Services,Widney Manor Sst,01/12/2016,5.60,Car Allowances: Officers,261600 - Human Resources - Travel & Subsistence
Solihull MBC,Resources,Central Services to the Public,Widney Manor Sst ,22/12/2016,5.6,ICT: Network Support,261600 - Human Resources - Travel & Subsistence
Solihull MBC,Resources,Central Services to the Public,Widney Manor Sst ,22/12/2016,29.2,ICT: Network Support,261600 - Human Resources - Travel & Subsistence
Solihull MBC,Adult Social Care,Adult Social Care,Wilko Retail Limit,20/11/2016,11.05,Cleaning,169999 - Domestic Goods - Not Elsewhere Classified
Solihull MBC,Managed Growth and Communities - HRA,Housing Revenue Account,Wilko Retail Limit,22/11/2016,12.05,General Debtors,169999 - Domestic Goods - Not Elsewhere Classified
Solihull MBC,Adult Social Care,Adult Social Care,Wilko Retail Limit ,22/12/2016,4.00,25 Stapleton Drive,169999 - Domestic Goods - Not Elsewhere Classified
Solihull MBC,Adult Social Care,Adult Social Care,Wilko Retail Limit ,22/12/2016,10.24,25 Stapleton Drive,169999 - Domestic Goods - Not Elsewhere Classified
Solihull MBC,Adult Social Care,Adult Social Care,Wilko Retail Limit ,22/12/2016,15,25 Stapleton Drive,169999 - Domestic Goods - Not Elsewhere Classified
Solihull MBC,Managed Growth and Communities,Planning & Development Services,Wilko.com,23/11/2016,45.00,General Office Expenses,169999 - Domestic Goods - Not Elsewhere Classified
Solihull MBC,Managed Growth and Communities,Environmental and Regulatory Services,Wilko.com ,22/12/2016,112.50,Town Centres and Events,169999 - Domestic Goods - Not Elsewhere Classified
Solihull MBC,Resources,Children & Education Services,Wm Morrison 069 ,22/12/2016,4.5,Catering Management,111200 - Catering - Food & Beverages
Solihull MBC,Resources,Children & Education Services,Wm Morrison 069 ,22/12/2016,4.5,Catering Management,111200 - Catering - Food & Beverages
Solihull MBC,Adult Social Care,Adult Social Care,Wm Morrison Food.com ,22/12/2016,63.66,OP - Longview Extra Care,111200 - Catering - Food & Beverages
Solihull MBC,Adult Social Care,Adult Social Care,Wm Morrison Food.com ,22/12/2016,225.11,Roundmead,111200 - Catering - Food & Beverages
Solihull MBC,Resources,Central Services to the Public,Wm Morrisons ,22/12/2016,6.2,Organisational Development,111200 - Catering - Food & Beverages
Solihull MBC,Adult Social Care,Cultural & Related Services,Wp-Stamps Direct L ,22/12/2016,24.87,Theatre Bar,341100 - Stationery - Sundries
Solihull MBC,Resources,Central Services to the Public,www.Aat-org.uk,17/11/2016,90.00,Grant & Subscription (SCITT),201000 - Financial Services - Accountancy
Solihull MBC,Children's Services & Skills,Children & Education Services,www.Bakerross.co.uk ,22/12/2016,17.23,Business & Management,171110 - Education - Arts & Crafts
Solihull MBC,Adult Social Care,Adult Social Care,www.Bonzaballoons.co.u,22/12/2016,70.99,PD - Day Care Green Acres,161000 - Domestic Goods - Commercial
Solihull MBC,Adult Social Care,Cultural & Related Services,www.Cipfa.org.uk/Pfmco,16/11/2016,427.50,Materials,201711 - Financial Services - Grants - Non-charitable
Solihull MBC,Adult Social Care,Adult Social Care,www.Instantprint.C,23/11/2016,50.66,Grant & Subscription (SCITT),192000 - Facilities & Management Services - Reprographics
Solihull MBC,Resources,Central Services to the Public,www.Ja.net,04/11/2016,300.00,IT Equipment & Software,201711 - Financial Services - Grants - Non-charitable
Solihull MBC,Managed Growth and Communities,Cultural & Related Services,www.Kingfisherdirect.co.,04/11/2016,375.98,Materials,209999 - Financial Services - Not Elsewhere Classified
Solihull MBC,Resources,Central Services to the Public,www.Laptopbits.co.uk ,22/12/2016,83.95,ICT: Desktop Team Helpdesk,271200 - Information Communications Technology - Hardware
Solihull MBC,Public Health & Commissioning,Cultural & Related Services,www.Lboro.Ac.uk,16/11/2016,35.00,Training,171010 - Education - Adult & Further Education Services
Solihull MBC,Adult Social Care,Adult Social Care,www.Millmoll.co.uk,23/11/2016,209.69,Grant & Subscription (SCITT),192300 - Facilities & Management Services - Storage
Solihull MBC,Resources,Other Housing Services,www.Moneyclaim.gov,24/11/2016,70.00,Reimbursements & Contributions,209999 - Financial Services - Not Elsewhere Classified
Solihull MBC,Resources,Other Housing Services,www.Moneyclaim.gov,24/11/2016,105.00,Reimbursements & Contributions,209999 - Financial Services - Not Elsewhere Classified
Solihull MBC,Resources,Other Housing Services,www.Moneyclaim.gov,24/11/2016,105.00,Reimbursements & Contributions,209999 - Financial Services - Not Elsewhere Classified
Solihull MBC,Resources,Other Housing Services,www.Moneyclaim.gov,24/11/2016,185.00,Reimbursements & Contributions,209999 - Financial Services - Not Elsewhere Classified
Solihull MBC,Resources,Other Housing Services,www.Moneyclaim.gov,24/11/2016,185.00,Reimbursements & Contributions,209999 - Financial Services - Not Elsewhere Classified
Solihull MBC,Managed Growth and Communities,Environmental and Regulatory Services,www.Nisbets.com ,22/12/2016,164.28,Public Protection Managem,161000 - Domestic Goods - Commercial
Solihull MBC,Children's Services & Skills,Children & Education Services,www.Pirongs.co.uk ,22/12/2016,10.44,Welfare Service,349999 - Stationery - Not Elsewhere Classified
Solihull MBC,Managed Growth and Communities,Highways & Transport Services,www.Pmgltd.co.uk ,22/12/2016,462.00,Car Parks Expenditure,151000 - Consultancy - Business
Solihull MBC,Managed Growth and Communities - HRA,Housing Revenue Account,www.Posturite.co.uk ,22/12/2016,89.88,Purchase Card SCH Facilities Mgmt,211000 - Furniture & Soft Furnishings - Commercial Furniture
Solihull MBC,Children's Services & Skills,Children & Education Services,www.Printedpaperproduc ,22/12/2016,59.82,Welfare Service,341100 - Stationery - Sundries
Solihull MBC,Resources,Central Services to the Public,www.Psaparts.co.uk,09/11/2016,49.23,IT Equipment & Software,271600 - Information Communication Technology - Software - Customised & Bespoke
Solihull MBC,Resources,Central Services to the Public,www.Staples.co.uk,29/11/2016,14.52,General Office Expenses,341100 - Stationery - Sundries
Solihull MBC,Resources,Central Services to the Public,www.Staples.co.uk,23/11/2016,53.93,General Office Expenses,341100 - Stationery - Sundries
Solihull MBC,Children's Services & Skills,Children & Education Services,www.Staples.co.uk ,22/12/2016,9.28,Welfare Service,341100 - Stationery - Sundries
Solihull MBC,Children's Services & Skills,Children & Education Services,www.Staples.co.uk ,22/12/2016,15.07,Welfare Service,341100 - Stationery - Sundries
Solihull MBC,Children's Services & Skills,Children & Education Services,www.Staples.co.uk ,22/12/2016,20.87,Welfare Service,341100 - Stationery - Sundries
Solihull MBC,Adult Social Care,Cultural & Related Services,www.Tillfood.co.uk,04/11/2016,27.94,General Office Expenses,341100 - Stationery - Sundries
Solihull MBC,Managed Growth and Communities,Highways & Transport Services,www.UK.Rs-Online.c,22/12/2016,81.43,Sustainable Travel & Highway Management,101100 - Building Construction Materials - Electrical
Solihull MBC,Public Health & Commissioning,Central Services to the Public,www.Unforgettable. ,22/12/2016,62.98,Commissioning,169999 - Domestic Goods - Not Elsewhere Classified
Solihull MBC,Children's Services & Skills,Children & Education Services,www.Viking-Direct.co.u,22/12/2016,178.8,Childrens Social Care Finance,341100 - Stationery - Sundries
Solihull MBC,Adult Social Care,Adult Social Care,York Museums & Gallery,30/11/2016,20.00,Clients Expenses,201710 - Financial Services - Grants - Charitable
Solihull MBC,Adult Social Care,Adult Social Care,York Tap Ltd,28/11/2016,8.33,Clients Expenses,261600 - Human Resources - Travel & Subsistence
Solihull MBC,Public Health & Commissioning,Cultural & Related Services,Zizzi Solihull ,22/12/2016,96.18,Leisure,261600 - Human Resources - Travel & Subsistence
